{"text_format":"2","workbook":"xlsx","n_sheets":1,"sheets":["aggdupcontabile"],"not_rendered":{"charts":0,"images":0,"macros":0,"external_links":5,"defined_names":32,"comments":0,"pivot_tables":0},"unopened":[],"bounds":{"document_bytes":16777216,"sheet_cells":100000,"run_cost":"one","rows_first":2000,"rows_last":500,"rows_between":2000,"halvings":0,"cell_chars":16384,"cell_head_chars":4096},"cells_cut":0,"cells_raw":0,"read":"whole","date_system":"1900"}

{"sheet":"aggdupcontabile","index":0,"n_rows":602,"n_cols":17,"rows_kept":602,"cut":false,"hidden":false,"merged":[[589,0,589,3],[589,4,589,7],[589,8,589,9],[589,10,589,11],[579,0,579,11],[582,0,582,11],[588,0,588,3],[588,4,588,7],[588,8,588,9],[588,10,588,11],[575,0,575,3],[575,4,575,7],[575,8,575,9],[575,10,575,11],[576,0,576,3],[576,4,576,7],[576,8,576,9],[576,10,576,11],[564,0,564,11],[567,0,567,11],[574,0,574,3],[574,4,574,7],[574,8,574,9],[574,10,574,11],[561,0,561,3],[561,4,561,7],[561,8,561,9],[561,10,561,11],[549,0,549,11],[552,0,552,11],[553,0,553,11],[556,0,556,11],[558,0,558,11],[560,0,560,3],[560,4,560,7],[560,8,560,9],[560,10,560,11],[546,0,546,3],[546,4,546,7],[546,8,546,9],[546,10,546,11],[535,0,535,11],[538,0,538,11],[543,0,543,11],[545,0,545,3],[545,4,545,7],[545,8,545,9],[545,10,545,11],[532,0,532,3],[532,4,532,7],[532,8,532,9],[532,10,532,11],[520,0,520,11],[523,0,523,11],[524,0,524,11],[529,0,529,11],[531,0,531,3],[531,4,531,7],[531,8,531,9],[531,10,531,11],[517,0,517,3],[517,4,517,7],[517,8,517,9],[517,10,517,11],[505,0,505,11],[508,0,508,11],[514,0,514,11],[516,0,516,3],[516,4,516,7],[516,8,516,9],[516,10,516,11],[502,0,502,3],[502,4,502,7],[502,8,502,9],[502,10,502,11],[489,0,489,11],[492,0,492,11],[499,0,499,11],[501,0,501,3],[501,4,501,7],[501,8,501,9],[501,10,501,11],[486,0,486,3],[486,4,486,7],[486,8,486,9],[486,10,486,11],[472,0,472,11],[475,0,475,11],[483,0,483,11],[485,0,485,3],[485,4,485,7],[485,8,485,9],[485,10,485,11],[469,0,469,3],[469,4,469,7],[469,8,469,9],[469,10,469,11],[458,0,458,11],[461,0,461,11],[466,0,466,11],[468,0,468,3],[468,4,468,7],[468,8,468,9],[468,10,468,11],[437,0,437,11],[440,0,440,11],[453,0,453,3],[453,4,453,7],[453,8,453,9],[453,10,453,11],[456,0,456,3],[456,4,456,7],[456,8,456,9],[456,10,456,11],[454,0,454,3],[454,4,454,7],[454,8,454,9],[454,10,454,11],[455,0,455,3],[455,4,455,7],[455,8,455,9],[455,10,455,11],[434,0,434,3],[434,4,434,7],[434,8,434,9],[434,10,434,11],[425,0,425,11],[428,0,428,11],[433,0,433,3],[433,4,433,7],[433,8,433,9],[433,10,433,11],[421,0,421,3],[421,4,421,7],[421,8,421,9],[421,10,421,11],[422,0,422,3],[422,4,422,7],[422,8,422,9],[422,10,422,11],[419,0,419,3],[419,4,419,7],[419,8,419,9],[419,10,419,11],[420,0,420,3],[420,4,420,7],[420,8,420,9],[420,10,420,11],[406,0,406,11],[409,0,409,11],[418,0,418,3],[418,4,418,7],[418,8,418,9],[418,10,418,11],[402,0,402,3],[402,4,402,7],[402,8,402,9],[402,10,402,11],[400,0,400,3],[400,4,400,7],[400,8,400,9],[400,10,400,11],[401,0,401,3],[401,4,401,7],[401,8,401,9],[401,10,401,11],[384,0,384,11],[387,0,387,11],[399,0,399,3],[399,4,399,7],[399,8,399,9],[399,10,399,11],[381,0,381,3],[381,4,381,7],[381,8,381,9],[381,10,381,11],[371,0,371,11],[374,0,374,11],[380,0,380,3],[380,4,380,7],[380,8,380,9],[380,10,380,11],[356,0,356,3],[356,4,356,7],[356,8,356,9],[356,10,356,11],[369,0,369,3],[369,4,369,7],[369,8,369,9],[369,10,369,11],[360,0,360,11],[363,0,363,11],[366,0,366,11],[368,0,368,3],[368,4,368,7],[368,8,368,9],[368,10,368,11],[351,0,351,11],[352,0,352,11],[354,0,354,3],[354,4,354,7],[354,8,354,9],[354,10,354,11],[345,0,345,11],[348,0,348,11],[355,0,355,3],[355,4,355,7],[355,8,355,9],[355,10,355,11],[342,0,342,3],[342,4,342,7],[342,8,342,9],[342,10,342,11],[343,0,343,3],[343,4,343,7],[343,8,343,9],[343,10,343,11],[334,0,334,11],[340,0,340,3],[340,4,340,7],[340,8,340,9],[340,10,340,11],[341,0,341,3],[341,4,341,7],[341,8,341,9],[341,10,341,11],[330,0,330,11],[333,0,333,11],[326,0,326,3],[326,4,326,7],[326,8,326,9],[326,10,326,11],[327,0,327,3],[327,4,327,7],[327,8,327,9],[327,10,327,11],[324,0,324,3],[324,4,324,7],[324,8,324,9],[324,10,324,11],[325,0,325,3],[325,4,325,7],[325,8,325,9],[325,10,325,11],[308,0,308,3],[308,4,308,7],[308,8,308,9],[308,10,308,11],[311,0,311,11],[314,0,314,11],[307,0,307,3],[307,4,307,7],[307,8,307,9],[307,10,307,11],[305,0,305,3],[305,4,305,7],[305,8,305,9],[305,10,305,11],[306,0,306,3],[306,4,306,7],[306,8,306,9],[306,10,306,11],[296,0,296,11],[299,0,299,11],[280,0,280,3],[280,4,280,7],[280,8,280,9],[280,10,280,11],[292,0,292,3],[292,4,292,7],[292,8,292,9],[292,10,292,11],[293,0,293,3],[293,4,293,7],[293,8,293,9],[293,10,293,11],[282,0,282,11],[285,0,285,11],[286,0,286,11],[287,0,287,11],[288,0,288,11],[290,0,290,11],[277,0,277,3],[277,4,277,7],[277,8,277,9],[277,10,277,11],[278,0,278,3],[278,4,278,7],[278,8,279,9],[278,10,278,11],[279,0,279,3],[279,4,279,7],[279,10,279,11],[271,0,271,11],[272,0,272,11],[273,0,273,11],[274,0,274,11],[276,0,276,3],[276,4,276,7],[276,8,276,9],[276,10,276,11],[265,0,265,11],[266,0,266,11],[267,0,267,11],[268,0,268,11],[269,0,269,11],[270,0,270,11],[253,1,253,4],[254,1,254,4],[255,1,255,4],[258,0,258,11],[261,0,261,11],[264,0,264,11],[247,1,247,4],[248,1,248,4],[249,1,249,4],[250,1,250,4],[251,1,251,4],[252,1,252,4],[241,1,241,4],[242,1,242,4],[243,1,243,4],[244,1,244,4],[245,1,245,4],[246,1,246,4],[235,1,235,4],[236,1,236,4],[237,1,237,4],[238,1,238,4],[239,1,239,4],[240,1,240,4],[228,0,228,11],[229,0,229,11],[231,1,231,4],[232,1,232,4],[233,1,233,4],[234,1,234,4],[216,2,216,5],[217,2,217,5],[218,2,218,5],[219,2,219,5],[220,2,220,5],[222,0,222,11],[204,2,204,5],[205,2,205,5],[206,2,206,5],[208,0,208,11],[213,0,213,11],[215,2,215,5],[192,2,192,5],[194,0,194,11],[199,0,199,11],[201,2,201,5],[202,2,202,5],[203,2,203,5],[186,2,186,5],[187,2,187,5],[188,2,188,5],[189,2,189,5],[190,2,190,5],[191,2,191,5],[174,2,174,5],[175,2,175,5],[176,2,176,5],[177,2,177,5],[179,0,179,11],[184,0,184,11],[167,0,167,11],[168,0,168,11],[169,0,169,11],[171,2,171,5],[172,2,172,5],[173,2,173,5],[155,2,155,5],[156,2,156,5],[157,2,157,5],[158,2,158,5],[160,0,160,11],[162,0,162,9],[143,2,143,5],[145,0,145,11],[150,0,150,11],[152,2,152,5],[153,2,153,5],[154,2,154,5],[136,0,136,11],[138,2,138,5],[139,2,139,5],[140,2,140,5],[141,2,141,5],[142,2,142,5],[119,2,119,4],[120,2,120,4],[121,2,121,4],[126,0,126,11],[129,0,129,11],[134,0,134,11],[113,0,113,11],[113,12,113,14],[115,2,115,4],[116,2,116,4],[117,2,117,4],[118,2,118,4],[103,1,103,4],[104,1,104,4],[105,1,105,4],[106,1,106,4],[110,0,110,11],[111,0,111,11],[96,1,96,4],[98,1,98,4],[99,1,99,4],[100,1,100,4],[101,1,101,4],[102,1,102,4],[90,1,90,4],[91,1,91,4],[92,1,92,4],[93,1,93,4],[94,1,94,4],[95,1,95,4],[83,0,83,11],[85,1,85,4],[86,1,86,4],[87,1,87,4],[88,1,88,4],[89,1,89,4],[70,1,70,4],[72,1,72,4],[73,1,73,4],[74,1,74,4],[75,1,75,4],[78,0,78,11],[64,1,64,4],[65,1,65,4],[66,1,66,4],[67,1,67,4],[68,1,68,4],[69,1,69,4],[56,1,56,4],[57,1,57,4],[61,0,61,11],[63,1,63,4],[48,1,48,4],[49,1,49,4],[50,1,50,4],[51,1,51,4],[52,1,52,4],[53,1,53,4],[47,1,47,4],[36,1,36,4],[37,1,37,4],[38,1,38,4],[39,1,39,4],[40,1,40,4],[41,1,41,4],[54,1,54,4],[55,1,55,4],[594,0,595,11],[1,2,1,9],[3,2,3,9],[5,0,5,11],[7,0,7,11],[15,0,15,11],[16,0,16,11],[28,2,28,4],[29,2,29,4],[30,2,30,4],[33,1,33,4],[34,1,34,4],[35,1,35,4],[20,0,20,11],[23,2,23,4],[24,2,24,4],[25,2,25,4],[26,2,26,4],[27,2,27,4],[42,1,42,4],[43,1,43,4],[44,1,44,4],[45,1,45,4],[46,1,46,4]]}
[]
[null,null,"COMUNE DI RANZANICO"]
[]
[null,null,"PROVINCIA DI BERGAMO"]
[]
[]
[]
["Nota di Aggiornamento del Documento Unico di Programmazione"]
[]
[{"$nulls":4},2018,{"$f":"E10+1","v":2019},null,{"$f":"F10+1","v":2020}]
[]
[]
[]
[]
["Premessa"]
["In ottemperanza a quanto previsto dai nuovi principi contabili introdotti dal D.lgs 118/2011 e successive modifiche, è redatta la presente nota di aggiornamento dei dati contabili contenuti nel Documento Unico di Programmazione approvato dalla Giunta Comunale al fine di adeguare il contenuto alle risultanze contabili definitive del bilancio di previsione per il triennio."]
[]
["TRIBUTI E POLITICA TRIBUTARIA"]
[]
["Un sistema altamente instabile"]
["Il sistema di finanziamento del bilancio risente molto sia dell'intervento legislativo in materia di trasferimenti dello stato a favore degli enti locali che, in misura sempre più grande, del carico tributario applicato sui beni immobili presenti nel territorio. Il federalismo fiscale riduce infatti il trasferimento di risorse centrali ed accentua la presenza di una politica tributaria decentrata. Il non indifferente impatto sociale e politico del regime di tassazione della proprietà immobiliare ha fatto sì che il quadro normativo di rifermento abbia subito nel corso degli anni profonde revisioni. L'ultima modifica a questo sistema si è avuta con l'introduzione dell'imposta unica comunale (IUC), i cui presupposti impositivi sono: il possesso di immobili; l’erogazione e fruizione di servizi comunali."]
[]
[{"$nulls":5}," Gettito",null,"Stima Gettito","Stima Gettito","Stima Gettito"]
[null,null,"Tributo",null,null,{"$f":"E10-1","v":2017},null,{"$f":"F24+1","v":2018},{"$f":"H24+1","v":2019},{"$f":"I24+1","v":2020}]
[null,null,"I.M.U.",null,null,{"$f":"[5]ENTRATA!G13","v":567000},{"$f":"[5]ENTRATA!H13","v":0},{"$f":"[5]ENTRATA!I13","v":560000},{"$f":"[5]ENTRATA!J13","v":561000},{"$f":"[5]ENTRATA!K13","v":562000}]
[null,null,"T.A.S.I. – Tassa sui servizi comunali",null,null,{"$f":"[5]ENTRATA!G15","v":0},{"$f":"[5]ENTRATA!H15","v":0},{"$f":"[5]ENTRATA!I15","v":0},{"$f":"[5]ENTRATA!J15","v":0},{"$f":"[5]ENTRATA!K15","v":0}]
[null,null,"T.A.R.I. – Tributo Comunale sui rifiuti",null,null,{"$f":"[5]ENTRATA!G21","v":158000},{"$f":"[5]ENTRATA!H21","v":0},{"$f":"[5]ENTRATA!I21","v":159000},{"$f":"[5]ENTRATA!J21","v":159500},{"$f":"[5]ENTRATA!K21","v":160000}]
[null,null,"Addizionale Comunale IRPEF",null,null,{"$f":"[5]ENTRATA!G18","v":64200},{"$f":"[5]ENTRATA!H18","v":0},{"$f":"[5]ENTRATA!I18","v":65000},{"$f":"[5]ENTRATA!J18","v":65500},{"$f":"[5]ENTRATA!K18","v":66000}]
[null,null,"Tributi minori e compartecipazioni",null,null,{"$f":"[5]ENTRATA!G17+[5]ENTRATA!G20+[5]ENTRATA!G23","v":8000},{"$f":"[5]ENTRATA!H17+[5]ENTRATA!H20+[5]ENTRATA!H23","v":0},{"$f":"[5]ENTRATA!I17+[5]ENTRATA!I20+[5]ENTRATA!I23","v":8550},{"$f":"[5]ENTRATA!J17+[5]ENTRATA!J20+[5]ENTRATA!J23","v":8550},{"$f":"[5]ENTRATA!K17+[5]ENTRATA!K20+[5]ENTRATA!K23","v":8550}]
[null,null,"Recuperi evasione tributaria e fiscale",null,null,{"$f":"[5]ENTRATA!G16+[5]ENTRATA!G19+[5]ENTRATA!G14+[5]ENTRATA!G22","v":29600},{"$f":"[5]ENTRATA!H16+[5]ENTRATA!H19+[5]ENTRATA!H14+[5]ENTRATA!H22","v":0},{"$f":"[5]ENTRATA!I16+[5]ENTRATA!I19+[5]ENTRATA!I14+[5]ENTRATA!I22","v":46250},{"$f":"[5]ENTRATA!J16+[5]ENTRATA!J19+[5]ENTRATA!J14+[5]ENTRATA!J22","v":37000},{"$f":"[5]ENTRATA!K16+[5]ENTRATA!K19+[5]ENTRATA!K14+[5]ENTRATA!K22","v":32000}]
[null,null,"TOTALE",null,null,{"$f":"SUM(F25:F30)","v":826800},{"$f":"SUM(G25:G30)","v":0},{"$f":"SUM(H25:H30)","v":838800},{"$f":"SUM(I25:I30)","v":831550},{"$f":"SUM(J25:J30)","v":828550}]
[]
[]
[null,"Descrizione missioni spesa corrente",null,null,null,{"$f":"+F24","v":2017},null,{"$f":"F34+1","v":2018},{"$f":"H34+1","v":2019},{"$f":"I34+1","v":2020}]
[null," 01. Servizi istituzionali, generali e di gestione"]
[null," 02. Giustizia"]
[null," 03. Ordine pubblico e sicurezza"]
[null," 04. Istruzione e diritto allo studio"]
[null," 05. Tutela e valorizzazione dei beni e attività culturali"]
[null," 06. Politiche giovanili, sport e tempo libero"]
[null," 07. Turismo"]
[null," 08. Assetto del territorio ed edilizia abitativa"]
[null," 09. Sviluppo sostenibile e tutela del territorio e dell`ambiente"]
[null," 10. Trasporti e diritto alla mobilità"]
[null," 11. Soccorso civile"]
[null," 12. Diritti sociali, politiche sociali e famiglia"]
[null," 13. Tutela della salute"]
[null," 14. Sviluppo economico e competitività"]
[null," 15. Politiche per il lavoro e la formazione professionale"]
[null," 16. Agricoltura, politiche agroalimentari e pesca"]
[null," 17. Energia e diversificazione delle fonti energetiche"]
[null," 18. Relazioni con altre autonomie territoriali e locali"]
[null," 19. Relazioni internazionali"]
[null," 20. Fondi e accantonamenti"]
[null," 50. Debito pubblico"]
[null," 60. Anticipazioni finanziarie"]
[null," 99. Servizi per conto terzi"]
[null,"TOTALE GENERALE",null,null,null,{"$f":"SUM(F35:F54)","v":0},null,{"$f":"SUM(H35:H54)","v":0},{"$f":"SUM(I35:I54)","v":0},{"$f":"SUM(J35:J54)","v":0}]
["NECESSITÀ FINANZIARIE PER MISSIONI E PROGRAMMI"]
[]
["Le risorse destinate a missioni e programmi"]
["Il finanziamento delle decisioni di spesa è il presupposto su cui poggia la successiva distribuzione delle risorse. Si può dare seguito ad un intervento che comporta un esborso solo in presenza della contropartita finanziaria. Questo significa che l'ente è autorizzato ad operare con specifici interventi di spesa solo se l'attività ha ottenuto la necessaria copertura finanziaria. Fermo restando il principio del pareggio, la decisione di impiegare le risorse nei diversi programmi in cui si articola la missione nasce da valutazioni di carattere politico o da esigenze di tipo tecnico. Parimenti riveste particolare importanza rispetto all’attività di programmazione politica e sulle scelte di bilancio il grado di rigidità del bilancio medesimo. Ossia più il bilancio è “ingessato” da spese fisse quali spesa di personale, spesa per interessi passivi e varie spese già contrattualizzate, minore sarà la possibilità di manovra dell’amministrazione, avendo a disposizione un’entità di risorse effettivamente disponibili molto ridotta. Ciascuna missione può richiedere interventi di parte corrente, rimborso prestiti o in c/capitale. Una missione può essere finanziata da risorse appartenenti allo stesso ambito (missione che si autofinanzia con risorse proprie) oppure, avendo un fabbisogno superiore alla propria disponibilità, deve essere finanziata dall'eccedenza di risorse reperite da altre missioni (la missione in avanzo finanzia quella in deficit). In generale la spesa corrente risulta finanziata dalla cosiddette entrate correnti costituite dalle entrate tributarie, dai trasferimenti correnti da altri enti (Stato – Regione – Provincia – Privati) e dalle entrate extra tributarie, ossia quelle generate dalla fornitura dei servizi comunali oppure dalla gestione del proprio patrimonio, dalle sanzioni C.d.S. etc."]
[]
[null,"ENTRATE CORRENTI",null,null,null,{"$f":"F24","v":2017},null,{"$f":"F64+1","v":2018},{"$f":"H64+1","v":2019},{"$f":"I64+1","v":2020}]
[null,"Entrate correnti di natura tributaria, contributiva e perequativa",null,null,null,{"$f":"[5]PAREGGIO!C7","v":826800},{"$f":"[5]PAREGGIO!D7","v":0},{"$f":"[5]PAREGGIO!E7","v":838800},{"$f":"[5]PAREGGIO!F7","v":831550},{"$f":"[5]PAREGGIO!G7","v":828550}]
[null,"Trasferimenti correnti",null,null,null,{"$f":"[5]PAREGGIO!C8","v":14700},{"$f":"[5]PAREGGIO!D8","v":0},{"$f":"[5]PAREGGIO!E8","v":16300},{"$f":"[5]PAREGGIO!F8","v":16300},{"$f":"[5]PAREGGIO!G8","v":16300}]
[null,"Entrate extratributarie",null,null,null,{"$f":"[5]PAREGGIO!C9","v":190269},{"$f":"[5]PAREGGIO!D9","v":0},{"$f":"[5]PAREGGIO!E9","v":174660},{"$f":"[5]PAREGGIO!F9","v":174950},{"$f":"[5]PAREGGIO!G9","v":176050}]
[null,"Totale entrate correnti",null,null,null,{"$f":"SUM(F65:F67)","v":1031769},null,{"$f":"SUM(H65:H67)","v":1029760},{"$f":"SUM(I65:I67)","v":1022800},{"$f":"SUM(J65:J67)","v":1020900}]
[null,"Fondo Pluriennale Vincolato",null,null,null,{"$f":"[5]PAREGGIO!C4","v":13005.83},{"$f":"[5]PAREGGIO!D4","v":0},{"$f":"[5]PAREGGIO!E4","v":0},{"$f":"[5]PAREGGIO!F4","v":0},{"$f":"[5]PAREGGIO!G4","v":0}]
[null,"Avanzo di amministrazione applicato",null,null,null,{"$f":"[5]PAREGGIO!L14","v":0},{"$f":"[5]PAREGGIO!M14","v":0},{"$f":"[5]PAREGGIO!N14","v":0},{"$f":"[5]PAREGGIO!O14","v":0},{"$f":"[5]PAREGGIO!P14","v":0}]
[null,"TOTALE",null,null,null,{"$f":"SUM(F68:F70)","v":1044774.83},null,{"$f":"SUM(H68:H70)","v":1029760},{"$f":"SUM(I68:I70)","v":1022800},{"$f":"SUM(J68:J70)","v":1020900}]
[]
[null,"SPESE",null,null,null,{"$f":"F64","v":2017},null,{"$f":"F73+1","v":2018},{"$f":"H73+1","v":2019},{"$f":"I73+1","v":2020}]
[null,"Spese correnti",null,null,null,{"$f":"[5]PAREGGIO!C19","v":1014774.8300000001},{"$f":"[5]PAREGGIO!D19","v":0},{"$f":"[5]PAREGGIO!E19","v":998510},{"$f":"[5]PAREGGIO!F19","v":991150},{"$f":"[5]PAREGGIO!G19","v":993900}]
[null,"Rimborso di prestiti",null,null,null,{"$f":"[5]PAREGGIO!C22","v":30000},{"$f":"[5]PAREGGIO!D22","v":0},{"$f":"[5]PAREGGIO!E22","v":31250},{"$f":"[5]PAREGGIO!F22","v":31650},{"$f":"[5]PAREGGIO!G22","v":27000}]
[null,"TOTALE",null,null,null,{"$f":"SUM(F74:F75)","v":1044774.8300000001},null,{"$f":"SUM(H74:H75)","v":1029760},{"$f":"SUM(I74:I75)","v":1022800},{"$f":"SUM(J74:J75)","v":1020900}]
[]
["Equilibri in termini di cassa"]
["Nonostante gli ormai cronici ritardi da parte del Ministero dell Interno nell'erogare quanto spettante annualmente in particolare ai Comuni, la buona liquidità dell'ente determinata principalmente dall'efficienza nella riscossione di imposte e tributi anche grazie alla puntualità dei contribuenti nell'adempiere alle scadenze prefissate, consente un buon margine operativo in termini di cassa, l'impegno per i prossimi esercizi sarà mantenere e migliorare la capacità di riscossione anche riguardo all'attività di accertamento e recupero dell'evasione tributaria."]
[]
["EQUILIBRI DI COMPETENZA NEL TRIENNIO"]
[]
["Programmazione ed equilibri di bilancio"]
["Secondo l'attuale disciplina di bilancio, la giunta approva entro il 15 novembre di ogni anno lo schema di approvazione del bilancio finanziario relativo al triennio successivo, da sottoporre all’approvazione del consiglio. Nel caso in cui sopraggiungano variazioni del quadro normativo di riferimento, la giunta aggiorna sia lo schema di bilancio in corso di approvazione che il documento unico di programmazione (D.U.P.). Entro il successivo 31 dicembre il consiglio approva il bilancio che comprende le previsioni di competenza e cassa del primo esercizio e le previsioni di sola competenza degli esercizi successivi."]
[]
[null,"ENTRATE",null,null,null,{"$f":"F64","v":2017},null,{"$f":"F86+1","v":2018},{"$f":"H86+1","v":2019},{"$f":"I86+1","v":2020}]
[null,"Entrate correnti di natura tributaria, contributiva e perequativa",null,null,null,{"$f":"[5]PAREGGIO!C7","v":826800},{"$f":"[5]PAREGGIO!D7","v":0},{"$f":"[5]PAREGGIO!E7","v":838800},{"$f":"[5]PAREGGIO!F7","v":831550},{"$f":"[5]PAREGGIO!G7","v":828550}]
[null,"Trasferimenti correnti",null,null,null,{"$f":"[5]PAREGGIO!C8","v":14700},{"$f":"[5]PAREGGIO!D8","v":0},{"$f":"[5]PAREGGIO!E8","v":16300},{"$f":"[5]PAREGGIO!F8","v":16300},{"$f":"[5]PAREGGIO!G8","v":16300}]
[null,"Entrate extratributarie",null,null,null,{"$f":"[5]PAREGGIO!C9","v":190269},{"$f":"[5]PAREGGIO!D9","v":0},{"$f":"[5]PAREGGIO!E9","v":174660},{"$f":"[5]PAREGGIO!F9","v":174950},{"$f":"[5]PAREGGIO!G9","v":176050}]
[null,"Entrate in conto capitale",null,null,null,{"$f":"[5]PAREGGIO!C10","v":188748},{"$f":"[5]PAREGGIO!D10","v":0},{"$f":"[5]PAREGGIO!E10","v":134400},{"$f":"[5]PAREGGIO!F10","v":75000},{"$f":"[5]PAREGGIO!G10","v":75000}]
[null,"Entrate da riduzione di attività finanziarie",null,null,null,{"$f":"[5]PAREGGIO!C11","v":0},{"$f":"[5]PAREGGIO!D11","v":0},{"$f":"[5]PAREGGIO!E11","v":0},{"$f":"[5]PAREGGIO!F11","v":0},{"$f":"[5]PAREGGIO!G11","v":0}]
[null,"Accensione prestiti",null,null,null,{"$f":"[5]PAREGGIO!C12","v":0},{"$f":"[5]PAREGGIO!D12","v":0},{"$f":"[5]PAREGGIO!E12","v":0},{"$f":"[5]PAREGGIO!F12","v":0},{"$f":"[5]PAREGGIO!G12","v":0}]
[null,"Anticipazioni da istituto tesoriere/cassiere",null,null,null,{"$f":"[5]PAREGGIO!C13","v":0},{"$f":"[5]PAREGGIO!D13","v":0},{"$f":"[5]PAREGGIO!E13","v":0},{"$f":"[5]PAREGGIO!F13","v":0},{"$f":"[5]PAREGGIO!G13","v":0}]
[null,"Entrate per conto terzi e partite di giro",null,null,null,{"$f":"[5]PAREGGIO!C14","v":420750},{"$f":"[5]PAREGGIO!D14","v":0},{"$f":"[5]PAREGGIO!E14","v":414750},{"$f":"[5]PAREGGIO!F14","v":414750},{"$f":"[5]PAREGGIO!G14","v":414750}]
[null,"Fondo Pluriennale Vincolato",null,null,null,{"$f":"[5]PAREGGIO!C4+[5]PAREGGIO!C5","v":469972.53},{"$f":"[5]PAREGGIO!D4+[5]PAREGGIO!D5","v":0},{"$f":"[5]PAREGGIO!E4+[5]PAREGGIO!E5","v":0},{"$f":"[5]PAREGGIO!F4+[5]PAREGGIO!F5","v":0},{"$f":"[5]PAREGGIO!G4+[5]PAREGGIO!G5","v":0}]
[null,"Avanzo di amministrazione applicato",null,null,null,{"$f":"[5]PAREGGIO!C3","v":40000},{"$f":"[5]PAREGGIO!D3","v":0},{"$f":"[5]PAREGGIO!E3","v":0},{"$f":"[5]PAREGGIO!F3","v":0},{"$f":"[5]PAREGGIO!G3","v":0}]
[null,"TOTALE",null,null,null,{"$f":"SUM(F87:F96)","v":2151239.5300000003},null,{"$f":"SUM(H87:H96)","v":1578910},{"$f":"SUM(I87:I96)","v":1512550},{"$f":"SUM(J87:J96)","v":1510650}]
[]
[null,"SPESE",null,null,null,{"$f":"F86","v":2017},null,{"$f":"H86","v":2018},{"$f":"I86","v":2019},{"$f":"J86","v":2020}]
[null,"Spese correnti",null,null,null,{"$f":"[5]PAREGGIO!C19","v":1014774.8300000001},{"$f":"[5]PAREGGIO!D19","v":0},{"$f":"[5]PAREGGIO!E19","v":998510},{"$f":"[5]PAREGGIO!F19","v":991150},{"$f":"[5]PAREGGIO!G19","v":993900}]
[null,"Spese in conto capitale",null,null,null,{"$f":"[5]PAREGGIO!C20","v":685714.7},{"$f":"[5]PAREGGIO!D20","v":0},{"$f":"[5]PAREGGIO!E20","v":134400},{"$f":"[5]PAREGGIO!F20","v":75000},{"$f":"[5]PAREGGIO!G20","v":75000}]
[null,"Spese da incremento attività finanziarie",null,null,null,{"$f":"[5]PAREGGIO!C21","v":0},{"$f":"[5]PAREGGIO!D21","v":0},{"$f":"[5]PAREGGIO!E21","v":0},{"$f":"[5]PAREGGIO!F21","v":0},{"$f":"[5]PAREGGIO!G21","v":0}]
[null,"Rimborso di prestiti",null,null,null,{"$f":"[5]PAREGGIO!C22","v":30000},{"$f":"[5]PAREGGIO!D22","v":0},{"$f":"[5]PAREGGIO!E22","v":31250},{"$f":"[5]PAREGGIO!F22","v":31650},{"$f":"[5]PAREGGIO!G22","v":27000}]
[null,"Chiusura anticipazioni da istituto tesoriere/cassiere",null,null,null,{"$f":"[5]PAREGGIO!C23","v":0},{"$f":"[5]PAREGGIO!D23","v":0},{"$f":"[5]PAREGGIO!E23","v":0},{"$f":"[5]PAREGGIO!F23","v":0},{"$f":"[5]PAREGGIO!G23","v":0}]
[null,"Spese per conto terzi e partite di giro",null,null,null,{"$f":"[5]PAREGGIO!C25","v":420750},{"$f":"[5]PAREGGIO!D25","v":0},{"$f":"[5]PAREGGIO!E25","v":414750},{"$f":"[5]PAREGGIO!F25","v":414750},{"$f":"[5]PAREGGIO!G25","v":414750}]
[null,"Disavanzo applicato",null,null,null,0,null,0,0,0]
[null,"TOTALE",null,null,null,{"$f":"SUM(F100:F106)","v":2151239.5300000003},null,{"$f":"SUM(H100:H106)","v":1578910},{"$f":"SUM(I100:I106)","v":1512550},{"$f":"SUM(J100:J106)","v":1510650}]
[]
["PROGRAMMAZIONE ED EQUILIBRI FINANZIARI"]
[]
["Il Consiglio Comunale, con l'approvazione politica di questo importante documento di programmazione, identifica gli obiettivi generali e destina le conseguenti risorse di bilancio. Il tutto, rispettando nell'intervallo di tempo richiesto  dalla  programmazione  il  pareggio  tra  risorse  destinate  (entrate)  e  relativi  impieghi  (uscite)."]
["L'Amministrazione può agire in quattro direzioni ben definite, la gestione corrente, gli interventi negli investimenti, l'utilizzo dei movimenti di fondi e la registrazione dei servizi per c/terzi, dove ognuno di questi ambiti può essere inteso come un'entità autonoma. Di norma, le scelte inerenti i programmi riguardano solo i primi due contesti (corrente e investimenti) perché i servizi c/terzi sono semplici partite di giro, mentre i movimenti di fondi interessano operazioni finanziarie di entrata e uscita che si compensano."]
["VINCOLI PAREGGIO DI BILANCIO"]
["Non va sottaciuto che il notevole sforzo messo in atto per riuscire a programmare l'attività dell'ente può essere vanificato proprio dal fatto che questa normativa, con cadenza quasi annuale, viene fortemente rimaneggiata dallo Stato. La norma, che nel corso dei diversi anni ha subito vistosi cambiamenti, nella versione più recente tende a conseguire un saldo cumulativo (obiettivo programmatico) di entrate ed uscite sia di parte corrente che in c/capitale denominato “Saldo finanziario di competenza mista\". Il mancato raggiungimento dell'obiettivo comporta per l'ente l'irrogazione di pesanti sanzioni. In primis, stante la difficoltà di modificare in riduzione la spesa corrente degli enti, specialmente per quanto attiene i servizi, il peso dei vincoli è stato trasferito sulla spesa di investimento, riducendola di fatto nella maggior parte dei casi, anche per carenza di risorse alla mera sopravvivenza manutentiva."]
[]
[null,null,"PAREGGIO AI FINI DEL PATTO",null,null,{"$f":"+F99","v":2017},{"$f":"+G99","v":0},{"$f":"+H99","v":2018},{"$f":"+I99","v":2019},{"$f":"+J99","v":2020}]
[null,null,"FONDO PLURIENNALE VINCOLATO",null,null,{"$f":"[5]PAREGGIO!C4+[5]PAREGGIO!C5","v":469972.53},{"$f":"+[5]PAREGGIO!D32","v":0},{"$f":"+[5]PAREGGIO!E32","v":0},{"$f":"+[5]PAREGGIO!F32","v":0},{"$f":"+[5]PAREGGIO!G32","v":0}]
[null,null,"ENTRATE",null,null,{"$f":"+[5]PAREGGIO!C33","v":1220517},{"$f":"+[5]PAREGGIO!D33","v":0},{"$f":"+[5]PAREGGIO!E33","v":1164160},{"$f":"+[5]PAREGGIO!F33","v":1097800},{"$f":"+[5]PAREGGIO!G33","v":1095900}]
[null,null,"SPESE",null,null,{"$f":"+[5]PAREGGIO!C34","v":1700489.53},{"$f":"+[5]PAREGGIO!D34","v":0},{"$f":"+[5]PAREGGIO!E34","v":1132910},{"$f":"+[5]PAREGGIO!F34","v":1066150},{"$f":"+[5]PAREGGIO!G34","v":1068900}]
[null,null,"DIFFERENZA",null,null,{"$f":"F118-F119+F117","v":-10000},null,{"$f":"H118-H119+H117","v":31250},{"$f":"I118-I119+I117","v":31650},{"$f":"J118-J119+J117","v":27000}]
[null,null,"SOMME ESCLUSE",null,null,{"$f":"+[5]PAREGGIO!C36","v":15200},{"$f":"+[5]PAREGGIO!D36","v":0},{"$f":"+[5]PAREGGIO!E36","v":15000},{"$f":"+[5]PAREGGIO!F36","v":16000},{"$f":"+[5]PAREGGIO!G36","v":17500}]
[null,null,"SALDO",null,null,{"$f":"+F120+F121","v":5200},null,{"$f":"+H120+H121","v":46250},{"$f":"+I120+I121","v":47650},{"$f":"+J120+J121","v":44500}]
[]
["FINANZIAMENTO DEL BILANCIO INVESTIMENTI"]
[]
["L'equilibrio del bilancio investimenti"]
["Come per la parte corrente, anche il budget richiesto dalle opere pubbliche presuppone il totale finanziamento della spesa. Ma a differenza della prima, la componente destinata agli investimenti è influenzata dalla disponibilità di risorse concesse dagli altri enti pubblici nella forma di contributi in C/capitale oppure da altre entrate proprie dell’ente aventi natura tale da finanziare opere, investimenti, acquisizioni, manutenzioni straordinarie etc."]
[]
["Le risorse destinate agli investimenti"]
["Oltre che a garantire il funzionamento della struttura, il comune può destinare le proprie entrate per acquisire migliorare le dotazioni infrastrutturali. In questo modo si viene ad assicurare un livello di mezzi strumentali tali da garantire l'erogazione di servizi di buona qualità. Le risorse di investimento possono essere gratuite, come i contributi in C/capitale, le alienazioni di beni, il risparmio di eccedenze correnti o l'avanzo di esercizi precedenti, o avere natura onerosa, come l'indebitamento. In questo caso, il rimborso del mutuo inciderà sul bilancio corrente caso, per tutto il periodo di ammortamento del prestito. Ed ancora possono essere disponibili risorse proprie che derivano da proventi di Oneri di Urbanizzazione, da monetizzazione di aree a servizi, da concessioni cimiteriali etc."]
[]
["ENTRATE TRIBUTARIE (valutazione e andamento)"]
[]
["Federalismo fiscale e solidarietà sociale"]
["L'impegno nell'erogare i servizi alla collettività richiede la disponibilità di risorse adeguate ai compiti che la società affida all'ente locale. Questi mezzi possono provenire dallo Stato oppure, in un'ottica ormai tesa al decentramento, direttamente dal territorio servito. Più ricchezza resta nel territorio che la produce maggiore è il ricorso al concetto di federalismo fiscale; più incisiva è la ridistribuzione di questa ricchezza verso zone meno prosperose, maggiore è il ricorso alla solidarietà sociale. Solidarietà sociale e costi sociali che la comunità si assume anche a livello locale sia per quanto attiene al welfare e sia per quanto attiene alla quota di costo dei servizi non coperta dagli utenti per mezzo delle tariffe. Negli ultimi anni, con il crescere dell’autonomia finanziaria, si è cercato di dare più forza all’autonomia impositiva. L'ente può orientarsi verso una politica di gestione dei tributi che garantisca un gettito adeguato al proprio fabbisogno ma senza ignorare i princìpi di equità contributiva e solidarietà sociale. Queste sono le regole di base che si scontrano con la dura realtà dei tagli alle risorse comunali, vuoi per le fasi di “Spending review” in capo agli enti locali, vuoi per le modifiche al sistema delle risorse nel passaggio da ICI ad IMU e da IMU all’avvento della TASI ed al sistema di compensazione tra enti che dalla nuova situazione, in applicazione dell’aliquota base, hanno ricevuto benefici."]
["Uno sguardo ai tributi locali"]
["Il comune può intervenire con scelte di politica tributaria locale nel campo applicativo di talune imposte/ tributi, quali la IUC (che comprende IMU, TARI e TASI), l'addizionale sull'IRPEF e l'imposta sulla pubblicità e sulle pubbliche affissioni. Per quanto riguarda la concreta modalità di accertamento di queste entrate, i criteri che portano a giudicare positivamente il lavoro del comune sono essenzialmente due: la capacità di contrastare l’evasione e quella di riscuotere il credito con rapidità. Questi comportamenti sono un preciso indice di giustizia contributiva e, allo stesso tempo, denotano lo sforzo dell'Amministrazione teso ad aumentare la solidità del bilancio, condizione anch'essa irrinunciabile, purtroppo non sempre percepita nella giusta misura dai non addetti ai lavori. Restano di competenza tributi minori quali i diritti sulle pubbliche affissioni e la quota di diritti di escavazione ed ancora il recupero di gettito da ex ruoli TARSU. Riportando nell’ambito della competenza comunale la TARI (ex tassa raccolta rifiuti e poi TIA) si ritiene necessaria una revisione della banca dati e l’attivazione di iniziative sia tese al recupero di eventuali sacche di evasione sia di iniziative volte a migliorare le tempistiche di incasso e la percentuale di realizzazione dei medesimi. L’attività di accertamento sia sulle poste tributarie residue sia su quelle di nuova gestione riveste importanza primaria nell’abito della fiscalità locale e tale sarà l’orientamento operativo dell’ente anche nel prossimo futuro"]
[]
[null,null,"Entrate correnti di natura tributaria, contributiva e perequativa",{"$nulls":4},{"$f":"H99","v":2018},{"$f":"H139+1","v":2019},{"$f":"I139+1","v":2020}]
[null,null,"Tipologia 101 - Imposte, tasse e proventi assimilati",{"$nulls":4},{"$f":"[5]ENTRATA!I24","v":838800},{"$f":"[5]ENTRATA!J24","v":831550},{"$f":"[5]ENTRATA!K24","v":828550}]
[null,null,"Tipologia 104 - Compartecipazioni di tributi",{"$nulls":4},0,0,0]
[null,null,"Tipologia 301 - Fondi perequativi da Amministrazioni Centrali",{"$nulls":4},{"$f":"[5]ENTRATA!H28","v":0},{"$f":"[5]ENTRATA!I28","v":0},{"$f":"[5]ENTRATA!J28","v":0}]
[null,null,"Tipologia 302 - Fondi perequativi dalla Regione o Provincia autonoma",{"$nulls":4},0,0,0]
[null,null,"Totale",{"$nulls":4},{"$f":"SUM(H140:H143)","v":838800},{"$f":"SUM(I140:I143)","v":831550},{"$f":"SUM(J140:J143)","v":828550}]
[]
["L'eventuale riforma delle leve impositive degli Enti Locali promessa recentemente dal governo potrebbe modificare radicalmente l'impostazione delle voci di entrata dei bilanci comunali, tuttavia l'ammontare complessivo delle risorse in entratà dovrà mantenere la stessa entità se non latro a garanzia del finanziamento delle spese per i servizi indispensabili svolti dall'ente."]
[]
["TRASFERIMENTI CORRENTI (valutazione e andamento)"]
[]
["Nella direzione del federalismo fiscale"]
["Questo genere di entrate è e sarà via via una quota residuale rispetto al quadro generale delle entrate. E' opportuno evidenziare come, a seguito del federalismo fiscale, le finanze degli enti locali siano passate da una finanza derivata ad una finanza propria, lo Stato in particolare interviene con una perequazione delle risorse trasferite ai comuni tramite il Fondo di Solidarietà comunale che dovrebbe altresì garantire la sostanziale invarianza delle risorse derivanti dalla fiscalità locale e dall'influenza che i provvedimenti a livello centrale determinano relativamente al gettito delle imposte locali stesse."]
[]
[null,null,"Trasferimenti correnti",{"$nulls":4},{"$f":"$H$139","v":2018},{"$f":"H153+1","v":2019},{"$f":"I153+1","v":2020}]
[null,null,"Tipologia 101 - Trasferimenti correnti da Amministrazioni pubbliche",{"$nulls":4},{"$f":"[5]ENTRATA!I41+[5]ENTRATA!I46","v":16300},{"$f":"[5]ENTRATA!J41+[5]ENTRATA!J46","v":16300},{"$f":"[5]ENTRATA!K41+[5]ENTRATA!K46","v":16300}]
[null,null,"Tipologia 102 - Trasferimenti correnti da Famiglie",{"$nulls":4},0,0,0]
[null,null,"Tipologia 103 - Trasferimenti correnti da Imprese",{"$nulls":4},0,0,0]
[null,null,"Tipologia 104 - Trasferimenti correnti da Istituzioni Sociali Private",{"$nulls":4},0,0,0]
[null,null,"Tipologia 105 - Trasferimenti correnti dall'Unione Europea e dal Resto del Mondo",{"$nulls":4},0,0,0]
[null,null,"Totale",{"$nulls":4},{"$f":"SUM(H154:H158)","v":16300},{"$f":"SUM(I154:I158)","v":16300},{"$f":"SUM(J154:J158)","v":16300}]
[]
[]
["Valutazione"]
[]
[]
["ENTRATE EXTRA-TRIBUTARIE (valutazione e andamento)"]
[]
["Entrate proprie e imposizione tariffaria"]
["Questo genere di entrate è una significativa fonte di finanziamento del bilancio, reperita con mezzi propri e ottenuta con l'applicazione di tariffe a tutta una serie di prestazioni rese ai singoli cittadini. Si tratta di servizi a domanda individuale, istituzionali e produttivi. Le altre risorse che confluiscono in questo comparto sono i proventi dei beni in affitto, gli utili ed i dividendi delle partecipazioni e altre entrate minori. Il comune, nel momento in cui pianifica l'attività per l'anno successivo, sceglie la propria politica tariffaria e individua la percentuale di copertura del costo dei servizi a domanda individuale che sarà finanziata con tariffe e altre entrate specifiche. L'Amministrazione rende così noto alla collettività l'entità del costo che tutti saranno chiamati a coprire per rendere possibile l'erogazione di certe prestazioni ad un prezzo sociale. Il cittadino, però, non è obbligato ad utilizzare questo tipo di prestazioni ma se lo fa, deve pagare il corrispettivo richiesto. Questo genere di entrate è una significativa fonte di finanziamento del bilancio, reperita con mezzi propri e ottenuta con l'applicazione di tariffe a tutta una serie di prestazioni rese ai singoli cittadini. Si tratta di servizi a domanda individuale, istituzionali e produttivi."]
["Le altre risorse che confluiscono in questo comparto sono i proventi dei beni in affitto, gli eventuali utili ed i dividendi delle partecipazioni, i proventi delle sanzioni C.d.S., i proventi dei canoni di occupazione suolo pubblico e pubblicità, i proventi dei diritti per costo pratica, i rimborsi di vario genere ed altre entrate minori."]
["Il comune, nel momento in cui pianifica l'attività per l'anno successivo, sceglie la propria politica tariffaria e individua la percentuale di copertura del costo dei servizi a domanda individuale che sarà finanziata con tariffe e altre entrate specifiche. L'Amministrazione rende così noto alla collettività l'entità del costo che tutti saranno chiamati a coprire per rendere possibile l'erogazione di certe prestazioni ad un prezzo sociale. Il cittadino, però, non è obbligato ad utilizzare questo tipo di prestazioni ma se lo fa, deve pagare il corrispettivo richiesto"]
[]
[null,null,"Entrate extratributarie","Rendiconto","Rendiconto","Stanziamento ",null,{"$f":"$H$139","v":2018},{"$f":"H172+1","v":2019},{"$f":"I172+1","v":2020}]
[null,null,"Tipologia 100 - Vendita di beni e servizi e proventi derivanti dalla gestione dei beni",{"$nulls":4},{"$f":"[5]ENTRATA!I68+[5]ENTRATA!I78","v":120960},{"$f":"[5]ENTRATA!J68+[5]ENTRATA!J78","v":121550},{"$f":"[5]ENTRATA!K68+[5]ENTRATA!K78","v":121650}]
[null,null,"Tipologia 200 - Proventi derivanti dall'attività di controllo e repressionedelle irregolarità e degl",36328.019999999997,2002.28,1000,null,{"$f":"[5]ENTRATA!I84","v":42000},{"$f":"[5]ENTRATA!J84","v":42000},{"$f":"[5]ENTRATA!K84","v":43000}]
[null,null,"Tipologia 300 - Interessi attivi",225.7,0,500,null,{"$f":"[5]ENTRATA!I90","v":400},{"$f":"[5]ENTRATA!J90","v":100},{"$f":"[5]ENTRATA!K90","v":100}]
[null,null,"Tipologia 400 - Altre entrate da redditi da capitale",0,0,0,null,0,0,0]
[null,null,"Tipologia 500 - Rimborsi e altre entrate correnti",22321.21,16041.1,41540,null,{"$f":"[5]ENTRATA!I102+[5]ENTRATA!I111+[5]ENTRATA!I115","v":10800},{"$f":"[5]ENTRATA!J102+[5]ENTRATA!J111+[5]ENTRATA!J115","v":10800},{"$f":"[5]ENTRATA!K102+[5]ENTRATA!K111+[5]ENTRATA!K115","v":10800}]
[null,null,"Totale",{"$nulls":4},{"$f":"SUM(H173:H177)","v":174160},{"$f":"SUM(I173:I177)","v":174450},{"$f":"SUM(J173:J177)","v":175550}]
["Valutazione"]
[]
[]
["ENTRATE IN CONTO CAPITALE (valutazione e andamento)"]
[]
["Investire senza aumentare l'indebitamento"]
["I trasferimenti in C/capitale sono risorse a titolo gratuito concesse al comune da entità pubbliche, come lo Stato, la regione o la provincia, oppure erogati da soggetti privati. Queste entrate, spesso rilevanti, possono essere destinate alla costruzione di nuove opere pubbliche o alla manutenzione straordinaria del patrimonio. Rientrano in questa categoria anche le alienazioni dei beni comunali, un'operazione il cui introito dev'essere sempre reinvestito in spese d'investimento, conservando pertanto l'originaria destinazione oppure ad estinzione anticipata del debito finanziario residuo con analoga finalità di mantenere inalterato il patrimonio dell’ente, agendo dal lato dei “debiti” anziché dei cespiti. Quello che è nato come un investimento, infatti, può essere alienato, ma il corrispondente ricavo di vendita non può diventare un mezzo di finanziamento del bilancio di parte corrente, salvo l'esistenza di eccezioni espressamente previste dalla legge."]
[]
[null,null,"Entrate in conto capitale",{"$nulls":4},{"$f":"$H$139","v":2018},{"$f":"H187+1","v":2019},{"$f":"I187+1","v":2020}]
[null,null,"Tipologia 100 - Tributi in conto capitale",{"$nulls":4},0,0,0]
[null,null,"Tipologia 200 - Contributi agli investimenti",{"$nulls":4},{"$f":"[5]ENTRATA!I130","v":5400},{"$f":"[5]ENTRATA!J130","v":0},{"$f":"[5]ENTRATA!K130","v":0}]
[null,null,"Tipologia 300 - Altri trasferimenti in conto capitale",{"$nulls":4},0,0,0]
[null,null,"Tipologia 400 - Entrate da alienazione di beni materiali e immateriali",{"$nulls":4},{"$f":"+[5]ENTRATA!I133","v":4000},0,0]
[null,null,"Tipologia 500 - Altre entrate in conto capitale",{"$nulls":4},{"$f":"+[5]ENTRATA!I142+[5]ENTRATA!I146","v":125000},{"$f":"+[5]ENTRATA!J142+[5]ENTRATA!J146","v":75000},{"$f":"+[5]ENTRATA!K142+[5]ENTRATA!K146","v":75000}]
[null,null,"Totale",{"$nulls":4},{"$f":"SUM(H188:H192)","v":134400},{"$f":"SUM(I188:I192)","v":75000},{"$f":"SUM(J188:J192)","v":75000}]
["Valutazione"]
[]
[]
["RIDUZIONE DI ATTIVITÀ FINANZIARIE (valutazione e andamento)"]
[]
["Riduzione di attività finanziarie"]
["Rientrano nell'insieme le alienazioni di attività finanziarie, le riscossioni di crediti a breve, medio e lungo termine, oltre la voce residuale delle altre entrate per riduzioni di attività finanziarie. Si tratta, in prevalenza, di operazioni spesso connesse ai movimenti di fondi e pertanto non legate ad effettive scelte di programmazione politica o amministrativa. I movimenti di fondi, infatti, consistono nella chiusura di una posizione debitoria e creditoria, di solito a saldo zero, a meno che l'estinzione non produca un guadagno (plusvalenza) o una perdita (minusvalenza) di valore. Una voce interessante di questo aggregato sono le alienazioni di attività finanziarie, dato che in esso confluiscono le alienazioni di partecipazioni, di fondi comuni d'investimento e la dismissione di obbligazioni. Non sono programmate nel triennio queste tipologie di interventi"]
[]
[null,null,"Riduzione di attività finanziarie",{"$nulls":4},{"$f":"$H$139","v":2018},{"$f":"H202+1","v":2019},{"$f":"I202+1","v":2020}]
[null,null,"Tipologia 100 - Alienazione di attività finanziarie",{"$nulls":4},0,0,0]
[null,null,"Tipologia 200 - Riscossione crediti di breve termine","Tipologia 200 - Riscossione crediti di breve termine","Tipologia 200 - Riscossione crediti di breve termine","Tipologia 200 - Riscossione crediti di breve termine",null,0,0,0]
[null,null,"Tipologia 300 - Riscossione crediti di medio-lungo termine","Tipologia 300 - Riscossione crediti di medio-lungo termine","Tipologia 300 - Riscossione crediti di medio-lungo termine","Tipologia 300 - Riscossione crediti di medio-lungo termine",null,0,0,0]
[null,null,"Tipologia 400 - Altre entrate per riduzione di attività finanziarie","Tipologia 400 - Altre entrate per riduzione di attività finanziarie","Tipologia 400 - Altre entrate per riduzione di attività finanziarie","Tipologia 400 - Altre entrate per riduzione di attività finanziarie",null,0,0,0]
[null,null,"Totale",{"$nulls":4},{"$f":"SUM(H203:H206)","v":0},{"$f":"SUM(I203:I206)","v":0},{"$f":"SUM(J203:J206)","v":0}]
["Valutazione"]
["Non si prevede alcuna attività finanziaria."]
[]
["ACCENSIONE PRESTITI NETTI (valutazione e andamento)"]
[]
["Il ricorso al credito oneroso"]
["Le risorse proprie del comune e quelle ottenute gratuitamente da terzi, come i contributi in C/capitale, possono non essere sufficienti a coprire il fabbisogno richiesto dagli investimenti. In tale circostanza, il ricorso al mercato finanziario può essere un'alternativa utile ma sicuramente onerosa. La contrazione dei mutui onerosi comporta, a partire dall'inizio dell'ammortamento e fino alla data di estinzione del prestito, il pagamento delle quote annuali per interesse e per il rimborso progressivo del capitale. Questi importi costituiscono, per il bilancio del comune, delle spese di natura corrente la cui entità va finanziata con altrettante risorse ordinarie. L'equilibrio del bilancio di parte corrente, infatti, si fonda sull'accostamento tra i primi tre titoli delle entrate (tributi, trasferimenti correnti, extra tributarie) ed i titoli primo e terzo delle uscite (spese correnti e rimborso mutui). Il peso del debito, inoltre, influisce sulla rigidità del bilancio comunale."]
[]
[null,null,"Accensione Prestiti    ",{"$nulls":4},{"$f":"$H$139","v":2018},{"$f":"H216+1","v":2019},{"$f":"I216+1","v":2020}]
[null,null,"Tipologia 100 - Emissione di titoli obbligazionari",{"$nulls":4},0,0,0]
[null,null,"Tipologia 200 - Accensione prestiti a breve termine",{"$nulls":4},0,0,0]
[null,null,"Tipologia 300 - Accensione mutui e altri finanziamenti a medio lungo termine",{"$nulls":4},0,0,0]
[null,null,"Tipologia 400 - Altre forme di indebitamento",{"$nulls":4},0,0,0]
[null,null,"Totale",{"$nulls":4},{"$f":"SUM(H217:H220)","v":0},{"$f":"SUM(I217:I220)","v":0},{"$f":"SUM(J217:J220)","v":0}]
["Valutazione"]
["Non viene prevista alcuna accensione di mutui o prestiti."]
[]
[]
["FABBISOGNO PER SINGOLA MISSIONE"]
[]
["Il budget di spesa dei programmi"]
["L'Amministrazione pianifica l'attività e formalizza le scelte prese nel documento di programmazione approvato dal consiglio. Con questa delibera, votata a maggioranza politica, sono identificati sia gli obiettivi futuri che le risorse necessarie al  loro effettivo conseguimento. Il bilancio è pertanto suddiviso in vari programmi a cui corrispondono i budget di spesa stanziati per rendere possibile la loro concreta realizzazione. Obiettivi e risorse diventano così i riferimenti ed i vincoli che delineano l'attività di gestione dell'azienda comunale."]
["Di seguito l'analisi, per ciascuna missione e programma del bilancio, degli obiettivi che l'Amministrazione intende realizzare negli esercizi considerati nel bilancio di previsione pluriennale, e l'indicazione in sintesi delle risorse necessarie alla realizzazione degli stessi oltre che degli impegni già assunti e le relative forme di finanziamento."]
[]
[null,"Descrizione missioni spesa",null,null,null,{"$f":"H216-1","v":2017},null,{"$f":"F232+1","v":2018},{"$f":"H232+1","v":2019},{"$f":"I232+1","v":2020}]
[null," 01. Servizi istituzionali, generali e di gestione",null,null,null,{"$f":"+[5]SPESA!H683","v":943122.90000000014},{"$f":"+[5]SPESA!I683","v":0},{"$f":"+[5]SPESA!J683","v":388690},{"$f":"+[5]SPESA!K683","v":406200},{"$f":"+[5]SPESA!L683","v":405200}]
[null," 02. Giustizia",null,null,null,{"$f":"+[5]SPESA!H684","v":0},{"$f":"+[5]SPESA!I684","v":0},{"$f":"+[5]SPESA!J684","v":0},{"$f":"+[5]SPESA!K684","v":0},{"$f":"+[5]SPESA!L684","v":0}]
[null," 03. Ordine pubblico e sicurezza",null,null,null,{"$f":"+[5]SPESA!H685","v":98828},{"$f":"+[5]SPESA!I685","v":0},{"$f":"+[5]SPESA!J685","v":48500},{"$f":"+[5]SPESA!K685","v":48600},{"$f":"+[5]SPESA!L685","v":48600}]
[null," 04. Istruzione e diritto allo studio",null,null,null,{"$f":"+[5]SPESA!H686","v":123900},{"$f":"+[5]SPESA!I686","v":0},{"$f":"+[5]SPESA!J686","v":129700},{"$f":"+[5]SPESA!K686","v":130500},{"$f":"+[5]SPESA!L686","v":130500}]
[null," 05. Tutela e valorizzazione dei beni e attività culturali",null,null,null,{"$f":"+[5]SPESA!H687","v":16560},{"$f":"+[5]SPESA!I687","v":0},{"$f":"+[5]SPESA!J687","v":35600},{"$f":"+[5]SPESA!K687","v":17200},{"$f":"+[5]SPESA!L687","v":17200}]
[null," 06. Politiche giovanili, sport e tempo libero",null,null,null,{"$f":"+[5]SPESA!H688","v":30880},{"$f":"+[5]SPESA!I688","v":0},{"$f":"+[5]SPESA!J688","v":15470},{"$f":"+[5]SPESA!K688","v":8500},{"$f":"+[5]SPESA!L688","v":8500}]
[null," 07. Turismo",null,null,null,{"$f":"+[5]SPESA!H689","v":2500},{"$f":"+[5]SPESA!I689","v":0},{"$f":"+[5]SPESA!J689","v":2500},{"$f":"+[5]SPESA!K689","v":2500},{"$f":"+[5]SPESA!L689","v":2500}]
[null," 08. Assetto del territorio ed edilizia abitativa",null,null,null,{"$f":"+[5]SPESA!H690","v":10160},{"$f":"+[5]SPESA!I690","v":0},{"$f":"+[5]SPESA!J690","v":15230},{"$f":"+[5]SPESA!K690","v":0},{"$f":"+[5]SPESA!L690","v":0}]
[null," 09. Sviluppo sostenibile e tutela del territorio e dell`ambiente",null,null,null,{"$f":"+[5]SPESA!H691","v":142519.63},{"$f":"+[5]SPESA!I691","v":0},{"$f":"+[5]SPESA!J691","v":200700},{"$f":"+[5]SPESA!K691","v":160510},{"$f":"+[5]SPESA!L691","v":160510}]
[null," 10. Trasporti e diritto alla mobilità",null,null,null,{"$f":"+[5]SPESA!H692","v":213880},{"$f":"+[5]SPESA!I692","v":0},{"$f":"+[5]SPESA!J692","v":161100},{"$f":"+[5]SPESA!K692","v":160450},{"$f":"+[5]SPESA!L692","v":160450}]
[null," 11. Soccorso civile",null,null,null,{"$f":"+[5]SPESA!H693","v":1580},{"$f":"+[5]SPESA!I693","v":0},{"$f":"+[5]SPESA!J693","v":2200},{"$f":"+[5]SPESA!K693","v":2300},{"$f":"+[5]SPESA!L693","v":2300}]
[null," 12. Diritti sociali, politiche sociali e famiglia",null,null,null,{"$f":"+[5]SPESA!H694","v":73466},{"$f":"+[5]SPESA!I694","v":0},{"$f":"+[5]SPESA!J694","v":85500},{"$f":"+[5]SPESA!K694","v":80000},{"$f":"+[5]SPESA!L694","v":85000}]
[null," 13. Tutela della salute",null,null,null,{"$f":"+[5]SPESA!H695","v":0},{"$f":"+[5]SPESA!I695","v":0},{"$f":"+[5]SPESA!J695","v":0},{"$f":"+[5]SPESA!K695","v":0},{"$f":"+[5]SPESA!L695","v":0}]
[null," 14. Sviluppo economico e competitività",null,null,null,{"$f":"+[5]SPESA!H696","v":0},{"$f":"+[5]SPESA!I696","v":0},{"$f":"+[5]SPESA!J696","v":0},{"$f":"+[5]SPESA!K696","v":0},{"$f":"+[5]SPESA!L696","v":0}]
[null," 15. Politiche per il lavoro e la formazione professionale",null,null,null,{"$f":"+[5]SPESA!H697","v":0},{"$f":"+[5]SPESA!I697","v":0},{"$f":"+[5]SPESA!J697","v":0},{"$f":"+[5]SPESA!K697","v":0},{"$f":"+[5]SPESA!L697","v":0}]
[null," 16. Agricoltura, politiche agroalimentari e pesca",null,null,null,{"$f":"+[5]SPESA!H698","v":0},{"$f":"+[5]SPESA!I698","v":0},{"$f":"+[5]SPESA!J698","v":0},{"$f":"+[5]SPESA!K698","v":0},{"$f":"+[5]SPESA!L698","v":0}]
[null," 17. Energia e diversificazione delle fonti energetiche",null,null,null,{"$f":"+[5]SPESA!H699","v":0},{"$f":"+[5]SPESA!I699","v":0},{"$f":"+[5]SPESA!J699","v":0},{"$f":"+[5]SPESA!K699","v":0},{"$f":"+[5]SPESA!L699","v":0}]
[null," 18. Relazioni con altre autonomie territoriali e locali",null,null,null,{"$f":"+[5]SPESA!H700","v":0},{"$f":"+[5]SPESA!I700","v":0},{"$f":"+[5]SPESA!J700","v":0},{"$f":"+[5]SPESA!K700","v":0},{"$f":"+[5]SPESA!L700","v":0}]
[null," 19. Relazioni internazionali",null,null,null,{"$f":"+[5]SPESA!H701","v":0},{"$f":"+[5]SPESA!I701","v":0},{"$f":"+[5]SPESA!J701","v":0},{"$f":"+[5]SPESA!K701","v":0},{"$f":"+[5]SPESA!L701","v":0}]
[null," 20. Fondi e accantonamenti",null,null,null,{"$f":"+[5]SPESA!H702","v":19248},{"$f":"+[5]SPESA!I702","v":0},{"$f":"+[5]SPESA!J702","v":25420},{"$f":"+[5]SPESA!K702","v":28640},{"$f":"+[5]SPESA!L702","v":28890}]
[null," 50. Debito pubblico",null,null,null,{"$f":"+[5]SPESA!H703","v":53845},{"$f":"+[5]SPESA!I703","v":0},{"$f":"+[5]SPESA!J703","v":53550},{"$f":"+[5]SPESA!K703","v":52400},{"$f":"+[5]SPESA!L703","v":46250}]
[null," 60. Anticipazioni finanziarie",null,null,null,{"$f":"+[5]SPESA!H704","v":0},{"$f":"+[5]SPESA!I704","v":0},{"$f":"+[5]SPESA!J704","v":0},{"$f":"+[5]SPESA!K704","v":0},{"$f":"+[5]SPESA!L704","v":0}]
[null," 99. Servizi per conto terzi",null,null,null,{"$f":"+[5]SPESA!H705","v":420750},{"$f":"+[5]SPESA!I705","v":0},{"$f":"+[5]SPESA!J705","v":414750},{"$f":"+[5]SPESA!K705","v":414750},{"$f":"+[5]SPESA!L705","v":414750}]
[null,"TOTALE GENERALE",null,null,null,{"$f":"SUM(F233:F255)","v":2151239.5300000003},null,{"$f":"SUM(H233:H255)","v":1578910},{"$f":"SUM(I233:I255)","v":1512550},{"$f":"SUM(J233:J255)","v":1510650},null,null,null,{"$f":"+[5]PAREGGIO!C26-aggdupcontabile!F256","v":0},{"$f":"+[5]PAREGGIO!E26-aggdupcontabile!H256","v":0},{"$f":"+[5]PAREGGIO!F26-aggdupcontabile!I256","v":0},{"$f":"+[5]PAREGGIO!G26-aggdupcontabile!J256","v":0}]
[]
[]
["MISSIONE 01 – Servizi istituzionali, generali e di gestione e relativi programmi"]
[]
["Definizione"]
["Rientrano nelle finalità di questa missione secondo il glossario previsto dall’ARCONET, articolata per altro in programmi, l’amministrazione e funzionamento dei servizi generali, dei servizi statistici e informativi, delle attività per lo sviluppo dell'ente in un’ottica di governance e partenariato e per la comunicazione istituzionale. Amministrazione, funzionamento e supporto agli organi esecutivi e legislativi. Amministrazione e funzionamento dei servizi di pianificazione economica in generale e delle attività per gli affari e i servizi finanziari e fiscali. Sviluppo e gestione delle politiche per il personale. Interventi che rientrano nell'ambito della politica regionale unitaria di carattere generale e di assistenza tecnica."]
[]
["Programmi"]
["Programma 01.01. - Organi istituzionali Programma "]
["Programma 01.02. - Segreteria generale"]
["Programma 01.03. - Gestione economica, finanziaria, programmazione e provveditorato "]
["Programma 01.04. - Gestione delle entrate tributarie e servizi fiscali"]
["Programma 01.05. - Gestione dei beni demaniali e patrimoniali"]
["Programma 01.06. - Ufficio tecnico"]
["Programma 01.07. - Elezioni e consultazioni popolari - Anagrafe e stato civile"]
["Programma 01.08. - Statistica e sistemi informativi "]
["Programma 01.09. - Assistenza tecnico-amministrativa agli enti locali"]
["Programma 01.10. - Risorse umane"]
["Programma 01.11. - Altri servizi generali"]
[]
["OBIETTIVO OPERATIVO ",null,null,null,"DESCRIZIONE SINTETICA ",null,null,null,"RISORSE FINANZIARIE SPECIFICHE E DOTAZIONI STRUMENTALI",null,"ORIZZONTE TEMPORALE E IMPEGNI PLURIENNALI"]
["Implementazione attività di accertamento e recupero elusione/evasione fiscale",null,null,null,"Attivare procedure per l'incrocio con i dati catastali",null,null,null,"Utilizzo delle dotazioni informatiche ed accesso a SIATEL; RISORSE GENERALI DI BILANCIO",null,2018]
["Gestione e manutenzione sistemi informativi",null,null,null,"Mantenere costantemente aggiornate le procedure software; attivare l'e-governement",null,null,null,"Affidamento incarico a Ditta specializzata;  RISORSE GENERALI DI BILANCIO ",null,"2018/2020"]
["Implementazione ed ammodernamento procedure informatiche",null,null,null,"Incrementare la dotazione software con idonea formazione del personale",{"$nulls":5},"2018/2020"]
["Gestione delle risorse umane e miglioramento del benessere organizzativo interno",null,null,null,"verifica periodica delle condizioni dei luoghi di lavoro e di eventuali situazioni di stress correlato",null,null,null,"Incarico esterno di R.s.p.p. e per la Sorveglianza Sanitaria; RISORSE GENERALI DI BILANCIO",null,"2018/2020"]
[]
["MISSIONE 02 - Giustizia e relativi programmi"]
[]
["Definizione"]
["Le funzioni esercitate in materia di giustizia sono limitate all'assunzione di eventuali oneri conseguenti alla presenza, nel proprio territorio, di uffici giudiziari, di uffici del giudice di pace e della casa circondariale. L'ambito di intervento previsto in questa missione di carattere non prioritario, interessa pertanto l’amministrazione e il funzionamento per il supporto tecnico, amministrativo e gestionale per gli acquisti, i servizi e le manutenzioni di competenza locale necessari per il funzionamento e mantenimento degli uffici giudiziari cittadini e delle case circondariali. Rientrano in questo contesto anche gli interventi della politica regionale unitaria in tema di giustizia. Per effetto del tipo particolare di attribuzioni svolte, questo genere di programmazione risulta limitata."]
["Programmi"]
["Programma 02.01 - Uffici giudiziari "]
["Programma 02.01 - Casa circondariale e altri servizi "]
[]
["Non sono previste a bilancio spese inerenti tale missione"]
[]
["OBIETTIVO OPERATIVO ",null,null,null,"DESCRIZIONE SINTETICA ",null,null,null,"RISORSE FINANZIARIE SPECIFICHE E DOTAZIONI STRUMENTALI",null,"ORIZZONTE TEMPORALE E IMPEGNI PLURIENNALI"]
[]
[]
[]
["MISSIONE 03 – Ordine pubblico e sicurezza e relativi programmi"]
[]
["Definizione"]
["Rientrano nelle finalità di questa missione secondo il glossario previsto dall’ARCONET, articolata per altro in programmi l’amministrazione e funzionamento delle attività collegate all’ordine pubblico e alla sicurezza a livello locale, alla polizia locale, commerciale e amministrativa. Sono incluse le attività di supporto alla programmazione, al coordinamento e al monitoraggio delle relative politiche. Sono comprese anche le attività in forma di collaborazione con altre forze di polizia presenti sul territorio. Interventi che rientrano nell'ambito della politica regionale unitaria in materia di ordine pubblico e sicurezza."]
[]
["Programmi"]
["Programma 03.01. - Polizia locale e amministrativa"]
["Programma 03.02. - Sistema integrato di sicurezza urbana"]
[]
["OBIETTIVO OPERATIVO ",null,null,null,"DESCRIZIONE SINTETICA ",null,null,null,"RISORSE FINANZIARIE SPECIFICHE E DOTAZIONI STRUMENTALI",null,"ORIZZONTE TEMPORALE E IMPEGNI PLURIENNALI"]
["Applicazione sanzioni pecuniarie per coloro che sporcano il suolo pubblico",null,null,null,"Incremento dei controlli mirati in aree ove vengono collocati i rifiuti solidi urbani",null,null,null,"Servizio svolto dal personale comunale (Agente di P.L. ed Operatore Ecologico)",null,"2018/2020"]
["Mantenimento ed implementazione attività di controllo della viabilità",null,null,null,"Attivazione di un calendario di servizio per il controllo della viabilità, in particolare sulla SS42 ",null,null,null,"Agenti di P.L. in gestione associata",null,"2018/2020"]
["Attivazione interventi formativi di educazione alla sicurezza",null,null,null,"Svolgimento di un corso di educazione stradale per gli alunni della locale scuola dell'infanzia",null,null,null,"Agente di P.L.",null,"2018/2020"]
[]
[]
["MISSIONE 4 – Istruzione e diritto allo studio e relativi programmi"]
[]
["Definizione"]
["Rientrano nelle finalità di questa missione secondo il glossario previsto dall’ARCONET, articolata per altro inprogrammi l’amministrazione, funzionamento ed erogazione di istruzione di qualunque ordine e grado per l'obbligo formativo e dei servizi connessi (quali assistenza scolastica, trasporto e refezione), ivi inclusi gli interventi per l'edilizia scolastica e l'edilizia residenziale per il diritto allo studio. Sono incluse le attività di supporto alla programmazione, al coordinamento e al monitoraggio delle politiche per l'istruzione. Interventi che rientrano nell'ambito della politica regionale unitaria in materia di istruzione e diritto allo studio."]
[]
["Programmi"]
["Programma 04.01. - Istruzione prescolastica"]
["Programma 04.02. - Altri ordini di istruzione"]
["Programma 04.03. - Istruzione universitaria"]
["Programma 04.04. - Istruzione tecnica superiore"]
["Programma 04.05. - Servizi ausiliari all'istruzione"]
["  Programma 04.06. - Diritto allo studio"]
[]
["OBIETTIVO OPERATIVO ",null,null,null,"DESCRIZIONE SINTETICA ",null,null,null,"RISORSE FINANZIARIE SPECIFICHE E DOTAZIONI STRUMENTALI",null,"ORIZZONTE TEMPORALE E IMPEGNI PLURIENNALI"]
["Attivazione gestione associata di servizi scolastici","Attivazione processi ed adempimenti finalizzati al risparmio energetico","Attivazione processi ed adempimenti finalizzati al risparmio energetico","Attivazione processi ed adempimenti finalizzati al risparmio energetico","Stipula di accordi di programma/convenzioni per la gestione associata di servizi scolastici con comuni limitrofi",null,null,null,"RISORSE GENERALI DI BILANCIO",null,"2018/2020"]
["Potenziamento servizi didattici soprattutto per persone disabili","Potenziamento servizi didattici soprattutto per persone disabili","Potenziamento servizi didattici soprattutto per persone disabili","Potenziamento servizi didattici soprattutto per persone disabili","Messa di atto di misure adeguate alle specifiche situazioni di bisogno con riferimento al Piano Diritto allo Studio",null,null,null,"RISORSE GENERALI DI BILANCIO",null,"2018/2020"]
["Miglioramento servizio scuolabus, mensa","Miglioramento servizio scuolabus, mensa","Miglioramento servizio scuolabus, mensa","Miglioramento servizio scuolabus, mensa","Stipula di contratti di servizio con Ditte adeguate,  in forma associata con comuni limitrofi",null,null,null,"RISORSE GENERALI DI BILANCIO",null,"2018/2020"]
[]
[]
["MISSIONE 05 – Tutela e valorizzazione dei beni e delle attività culturali e relativi programmi"]
[]
["Definizione"]
["Amministrazione e funzionamento delle attività di tutela e sostegno, di ristrutturazione e manutenzione dei beni di interesse storico, artistico e culturale e del patrimonio archeologico e architettonico."]
["Amministrazione, funzionamento ed erogazione di servizi culturali e di sostegno alle strutture e alle attività culturali non finalizzate al turismo. Sono incluse le attività di supporto alla programmazione, al coordinamento e al monitoraggio delle relative politiche. Interventi che rientrano nell'ambito della politica regionale unitaria in materia di tutela e valorizzazione dei beni e delle attività culturali."]
[]
["Programmi"]
["Programma 05.01. - Valorizzazione dei beni di interesse storico"]
["Programma 05.02. - Attività culturali e interventi diversi nel settore culturale"]
[]
["OBIETTIVO OPERATIVO ",null,null,null,"DESCRIZIONE SINTETICA ",null,null,null,"RISORSE FINANZIARIE SPECIFICHE E DOTAZIONI STRUMENTALI",null,"ORIZZONTE TEMPORALE E IMPEGNI PLURIENNALI"]
["Potenziamento del servizio biblioteca",null,null,null," incentivare il servizio di interprestito",null,null,null,"Utilizzo software in dotazione; RISORSE GENERALI DI BILANCIO",null,2018]
["Potenziamento dotazioni informatiche presso biblioteca","Potenziamento dotazioni informatiche presso biblioteca","Potenziamento dotazioni informatiche presso biblioteca","Potenziamento dotazioni informatiche presso biblioteca","Dotare i locali della biblioteca di wi-fi per il collegamento internet",null,null,null,"Affidamento incarico a Ditta di informatica; RISORSE GENERALI DI BILANCIO",null,2018]
["Attivazione progetti culturali","Attivazione progetti culturali","Attivazione progetti culturali","Attivazione progetti culturali","Collaborazione con le Associazioni sul territorio in ambito cultrale;  Sviluppare la fruibilità del \"Museo della seta\"",null,null,null,"Attività di volontariato con la collaborazione degli uffici comunali; RISORSE GENERALI DI BILANCIO",null,"2018/2020"]
[]
["MISSIONE 06 – Politiche giovanili, sport e tempo libero e relativi programmi"]
[]
["Definizione"]
["Il glossario ARCONET definisce la missione in oggetto come amministrazione e funzionamento di attività sportive, ricreative e per i giovani, incluse la fornitura di servizi sportivi e ricreativi, le misure di sostegno alle strutture per la pratica dello sport o per eventi sportivi e ricreativi e le misure di supporto alla programmazione, al coordinamento e al monitoraggio delle relative politiche. Interventi che rientrano nell'ambito della politica regionale unitaria in materia di politiche giovanili, per lo sport e il tempo libero."]
[]
["Programmi"]
["Programma 06.01. - Sport e tempo libero"]
["Programma 06.02. – Giovani"]
[]
["OBIETTIVO OPERATIVO ",null,null,null,"DESCRIZIONE SINTETICA ",null,null,null,"RISORSE FINANZIARIE SPECIFICHE E DOTAZIONI STRUMENTALI",null,"ORIZZONTE TEMPORALE E IMPEGNI PLURIENNALI"]
["Miglioramento impianti sportivi",null,null,null,"2° lotto di interventi di rifacimento impianti sportivi (in particolare impianto illuminazione campo calcio e tennis)",null,null,null,"Affidamento appalto; risorse specifiche per €. 6.770,00",null,2018]
["Istituzione di eventi dedicati ad iniziative sportive","Istituzione di eventi dedicati ad iniziative sportive","Istituzione di eventi dedicati ad iniziative sportive","Istituzione di eventi dedicati ad iniziative sportive","Collaborazione con il gestore degli impianti per l'organizzazione di iniziative in ambito sportivo-riscreativo",null,null,null,"RISORSE GENERALI DI BILANCIO",null,"2018/2020"]
[]
[]
[]
["Missione 07 – Turismo e relativi programmi"]
[]
["Definizione"]
["Le attribuzioni esercitabili nel campo turistico, secondo il glossario ARCONET, riguardano sia l'erogazione di servizi turistici che la realizzazione diretta o indiretta di manifestazioni a richiamo turistico. Queste funzioni possono estendersi, limitatamente agli interventi non riservati espressamente dalla legge alla regione o alla provincia, fino a prevedere l’attivazione di investimenti mirati allo sviluppo del turismo. Entrano nella missione l’amministrazione e il funzionamento delle attività e dei servizi relativi al turismo per la promozione e lo sviluppo del turismo sul territorio, ivi incluse le possibili attività di supporto e stimolo alla programmazione, al coordinamento ed al monitoraggio delle relative politiche. A ciò si sommano gli interventi nell'ambito della politica regionale in materia di turismo e sviluppo turistico."]
[]
["Programmi"]
["Programma 07.01. - Sviluppo e valorizzazione del turismo"]
[]
["OBIETTIVO OPERATIVO ",null,null,null,"DESCRIZIONE SINTETICA ",null,null,null,"RISORSE FINANZIARIE SPECIFICHE E DOTAZIONI STRUMENTALI",null,"ORIZZONTE TEMPORALE E IMPEGNI PLURIENNALI"]
["Promozione iniziative di sviluppo turistico",null,null,null,"Collaborazione con Associazioni no-profit per l'organizzazione di  eventi di promozione turistica del territorio",null,null,null,"RISORSE GENERALI DI BILANCIO",null,"2018/2020"]
[]
["Missione 08 – Assetto del territorio ed edilizia abitativa e relativi programmi"]
[]
["Definizione"]
["I principali strumenti di programmazione che interessano la gestione del territorio e l’urbanistica sono il piano regolatore generale, il piano particolareggiato e quello strutturale, il programma di fabbricazione, il piano urbanistico ed il regolamento edilizio. Questi strumenti delimitano l'assetto e l’urbanizzazione del territorio individuando i vincoli di natura urbanistica ed edilizia, con la conseguente definizione della destinazione di tutte le aree comprese nei confini. Competono all’ente locale, e rientrano pertanto nella missione, l’amministrazione, il funzionamento e fornitura di servizi ed attività relativi alla pianificazione e alla gestione del territorio e per la casa, ivi incluse le attività di supporto alla programmazione, al coordinamento e al monitoraggio delle relative politiche."]
[]
["Programmi"]
["Programma 08.01. - Urbanistica e assetto del territorio"]
["Programma 08.02. - Edilizia residenziale pubblica e locale e piani di edilizia economico-popolare"]
[]
["OBIETTIVO OPERATIVO ",null,null,null,"DESCRIZIONE SINTETICA ",null,null,null,"RISORSE FINANZIARIE SPECIFICHE E DOTAZIONI STRUMENTALI",null,"ORIZZONTE TEMPORALE E IMPEGNI PLURIENNALI"]
[]
[]
[]
["Missione 09 – Sviluppo sostenibile e relativi programmi"]
[]
["Definizione"]
["Le funzioni attribuite all’ente in materia di gestione del territorio e dell'ambiente hanno assunto una crescente importanza, dovuta alla maggiore sensibilità del cittadino e dell’amministrazione verso un approccio che garantisca un ordinato sviluppo socio/economico del territorio, il più possibile compatibile con il rispetto e la valorizzazione dell'ambiente. La programmazione, in questo contesto, abbraccia secondo il glossario ARCONET, l’amministrazione e il funzionamento delle attività e dei servizi connessi alla tutela dell'ambiente, del territorio, delle risorse naturali e delle biodiversità, la difesa del suolo dall’inquinamento, la tutela dell'acqua e dell'aria. Competono all’ente locale l’amministrazione, il funzionamento e la fornitura dei diversi servizi di igiene ambientale, lo smaltimento dei rifiuti e il servizio idrico."]
[]
["Programmi"]
["Programma 09.01. – Difesa del suolo"]
["Programma 09.02. - Tutela, valorizzazione e recupero ambientale"]
["Programma 09.03. – Rifiuti"]
["Programma 09.04. - Servizio idrico integrato"]
["Programma 09.05. - Aree protette, parchi naturali, protezione naturalistica e forestazione"]
["Programma 09.06. - Tutela e valorizzazione delle risorse idriche"]
["Programma 09.07. - Sviluppo sostenibile territorio montano piccoli Comuni"]
["Programma 09.08. - Qualità dell'aria e riduzione dell'inquinamento"]
[]
["OBIETTIVO OPERATIVO ",null,null,null,"DESCRIZIONE SINTETICA ",null,null,null,"RISORSE FINANZIARIE SPECIFICHE E DOTAZIONI STRUMENTALI",null,"ORIZZONTE TEMPORALE E IMPEGNI PLURIENNALI"]
["Salvaguardia risorse naturali e ambientali","Salvaguardia risorse naturali e ambientali","Salvaguardia risorse naturali e ambientali","Salvaguardia risorse naturali e ambientali","Controllo del territorio ed in particolare monitoraggio dele sponde lacustri",null,null,null,"utilizzo di automezzi, attrezzature e personale dipendente;RISORSE GENERALI DI BILANCIO",null,"2018/2020"]
["Garantire la pulizia ambientale del territorio","Garantire la pulizia ambientale del territorio","Garantire la pulizia ambientale del territorio","Garantire la pulizia ambientale del territorio","appalto a Ditta esterna a seguito del pensionamento di un Operatore dipendente;Attivazione iniziative  di volontariato finalizzate alla manutenzione delle aree verdi",null,null,null,"RISORSE GENERALI DI BILANCIO",null,"2018/2020"]
["Incremento raccolta differenziata","Incremento pulizia strade ed aree verdi","Incremento pulizia strade ed aree verdi","Incremento pulizia strade ed aree verdi","Sviluppo, in coordinamento con gli altri Comuni della zona, della raccolta differenziata (porta a porta Vetro) con l'obiettivo di raggiungere nel triennio l'80%  di rifiuti",null,null,null,"Centro di Raccolta Comunale gestito da Soc. Valcavallina Servizi;RISORSE GENERALI DI BILANCIO",null,"2018/2020"]
[]
[]
[]
["Missione 10 – Trasporti e diritto alla mobilità e relativi programmi"]
[]
["Definizione"]
["Le funzioni esercitate nella Missione interessano il campo della viabilità e dei trasporti, e riguardano sia la gestione della circolazione e della viabilità che l'illuminazione stradale locale. I riflessi economici di queste competenze possono abbracciare il bilancio investimenti e la gestione corrente. Competono all’ente locale l’amministrazione, il funzionamento e la regolamentazione delle attività inerenti la pianificazione, la gestione e l'erogazione di servizi relativi alla mobilità sul territorio. Sono incluse le attività di supporto alla programmazione, coordinamento e al successivo monitoraggio delle relative politiche, eventualmente estese anche ai possibili interventi che rientrano nell'ambito della politica regionale unitaria in materia di trasporto e mobilità sul territorio."]
[]
["Programmi"]
["Programma 10.01. - Trasporto ferroviario"]
["Programma 10.02. - Trasporto pubblico locale"]
["Programma 10.03. - Trasporto per vie d'acqua"]
["Programma 10.04. - Altre modalità di trasporto"]
["Programma 10.05. - Viabilità e infrastrutture stradali"]
[]
["OBIETTIVO OPERATIVO ",null,null,null,"DESCRIZIONE SINTETICA ",null,null,null,"RISORSE FINANZIARIE SPECIFICHE E DOTAZIONI STRUMENTALI",null,"ORIZZONTE TEMPORALE E IMPEGNI PLURIENNALI"]
["Miglioramento viabilità ","Miglioramento viabilità centro storico","Miglioramento viabilità centro storico","Miglioramento viabilità centro storico","Verifica della condizione del manto stradale con interventi di miglioramento (asfaltature)",null,null,null,"RISORSE GENERALI DI BILANCIO",null,"2018/2020"]
["Miglioramento piano emergenza neve","Miglioramento piano emergenza neve","Miglioramento piano emergenza neve","Miglioramento piano emergenza neve","Attivazione procedure di intervento immediato nel caso di eventi nevosi e spargimento sale sulle strade ed aree pubbliche",null,null,null,"Ditta appaltatrice e mezzo comunale attrezzato con lama spazzaneve e spargisale; RISORSE GENERALI DI BILANCIO",null,"2018/2020"]
["Manutenzione impianti illuminazione pubblica ed efficientamento energetico","Manutenzione impianti illuminazione pubblica ed efficientamento energetico","Manutenzione impianti illuminazione pubblica ed efficientamento energetico","Manutenzione impianti illuminazione pubblica ed efficientamento energetico","Miglioramento efficienze e risparmi ",null,null,null,"Ditta gestore del servizio che deve attenersi al capitolato CONSIP;                   RISORSE GENERALI DI BILANCIO",null,"2018/2020"]
["Abbattimento barriere architettoniche","Abbattimento barriere architettoniche","Abbattimento barriere architettoniche","Abbattimento barriere architettoniche","Attuazione di interventi per l'eliminazione di barriere architettoniche presso marciapiedi e luoghi pubblici",null,null,null," PROVENTI DA CONCESSIONI EDILIZIE ",null,"2018/2020"]
[]
[]
["Missione 11 – Soccorso civile e relativi programmi"]
[]
["Definizione"]
["La presenza di rischi naturali o ambientali, unitamente all'accresciuta cultura della tutela e conservazione del territorio, produce un crescente interesse del cittadino verso questi aspetti evoluti di convivenza civile. L’ente può quindi esercitare ulteriori funzioni di protezione civile, e quindi di intervento e supporto nell'attività di previsione e prevenzione delle calamità. Appartengono alla Missione l’amministrazione e il funzionamento degli interventi di protezione civile sul territorio, la previsione, prevenzione, soccorso e gestione delle emergenze naturali. Questi ambiti abbracciano la programmazione, coordinamento e monitoraggio degli interventi di soccorso civile, comprese altre attività intraprese in collaborazione con strutture che sono competenti in materia di gestione delle emergenze."]
[]
["Programmi"]
["Programma 11.01. – Sistema di protezione civile"]
["Programma 11.02. – Interventi a seguito di calamità naturali"]
["OBIETTIVO OPERATIVO ",null,null,null,"DESCRIZIONE SINTETICA ",null,null,null,"RISORSE FINANZIARIE SPECIFICHE E DOTAZIONI STRUMENTALI",null,"ORIZZONTE TEMPORALE E IMPEGNI PLURIENNALI"]
["Sostegno al Nucleo di Pro.Civile",null,null,null,"Erogazione di contributo al Nucleo di protezione Civile finalizzato al miglioramento della propria dotazione strumentale",null,null,null,"Già da alcuni anni è stato affidato in comodato d'uso al Nucleo di P.C. un autocarro promiscuo  di cui viene sostenuto il pagamento della polizza assicurativa e tassa regionale;              RISORSE GENERALI DI BILANCIO",null,"2018/2020"]
[]
[]
["Missione 12 – Diritti sociali, politiche sociali, famiglia e relativi programmi"]
[]
["Definizione"]
["Le funzioni esercitate nel campo sociale riguardano aspetti molteplici della vita del cittadino che richiedono un intervento diretto o indiretto dell'ente dai primi anni di vita fino all'età senile. La politica sociale adottata nell'ambito territoriale ha riflessi importanti nella composizione del bilancio e nella programmazione di medio periodo, e questo sia per quanto riguarda la spesa corrente che gli investimenti. Questa missione include l’amministrazione, il funzionamento e la fornitura dei servizi in materia di protezione sociale a favore e a tutela dei diritti della famiglia, dei minori, degli anziani, dei disabili, dei soggetti a rischio di esclusione sociale, ivi incluse le misure di sostegno alla cooperazione e al terzo settore che operano in questo ambito d'intervento."]
[]
["Programmi"]
["Programma 12.01. - Interventi per l'infanzia e i minori e per asili nido "]
["Programma 12.02. - Interventi per la disabilità"]
["Programma 12.03. - Interventi per gli anziani"]
["Programma 12.04. - Interventi per soggetti a rischio di esclusione sociale "]
["Programma 12.05. - Interventi per le famiglie"]
["Programma 12.06. - Interventi per il diritto alla casa"]
["Programma 12.07. - Programmazione e governo della rete dei servizi sociosanitari e sociali"]
["Programma 12.08. - Cooperazione e associazionismo"]
["Programma 12.09. - Servizio necroscopico e cimiteriale"]
[]
["OBIETTIVO OPERATIVO ",null,null,null,"DESCRIZIONE SINTETICA ",null,null,null,"RISORSE FINANZIARIE SPECIFICHE E DOTAZIONI STRUMENTALI",null,"ORIZZONTE TEMPORALE E IMPEGNI PLURIENNALI"]
["Miglioramento servizi sociali già esistenti","Miglioramento servizi sociali già esistenti","Miglioramento servizi sociali già esistenti","Miglioramento servizi sociali già esistenti","Gestione in forma associata con il Consorzio servizi Valle Cavallina",null,null,null,"RISORSE GENERALI DI BILANCIO",null,"2018/2020"]
["Coinvolgimento associazioni territorio nello svolgimento delle attività culturali di aggregazione","Coinvolgimento associazioni territorio nello svolgimento delle attività culturali di aggregazione","Coinvolgimento associazioni territorio nello svolgimento delle attività culturali di aggregazione","Coinvolgimento associazioni territorio nello svolgimento delle attività culturali di aggregazione","Organizzazione di manifestazioni / gite / attivita di intrattenimento e svago per gli anziani in collaborazione con i volontari",null,null,null,"RISORSE GENERALI DI BILANCIO",null,"2018/2020"]
["Programma manutenzione cimitero","Programma manutenzioni e ampliamento cimiteri","Programma manutenzioni e ampliamento cimiteri","Programma manutenzioni e ampliamento cimiteri","Periodiche estumulazione ed esumazioni per la rotazione delle sepolture; manutenzione del verde cimiteriale",null,null,null,"RISORSE GENERALI DI BILANCIO",null,"2018/2020"]
[]
["Missione 13 – Tutela della salute e relativi programmi"]
[]
["Definizione"]
["La competenza dell’ente locale in ambito sanitario è limitata dalla presenza, in un contesto a carattere così specialistico, di altri soggetti che operano direttamente sul territorio con una competenza di tipo istituzionale che non di rado è esclusiva. Con questa doverosa premessa, appartengono alla Missione con i relativi programmi, secondo il glossario ARCONET, le attribuzioni di amministrazione, funzionamento e fornitura dei servizi relativi alle attività per la prevenzione, la tutela e la cura della salute, unitamente ad eventuali interventi residuali in materia di edilizia sanitaria. Rientrano nel contesto, pertanto, le possibili attribuzioni in tema di programmazione, coordinamento e monitoraggio delle politiche a tutela della salute sul territorio che non siano di stretta competenza della sanità statale o regionale."]
[]
["Programmi"]
["Programma 13.07. - Ulteriori spese in materia sanitaria"]
[]
["Non sono previste a bilancio spese inerenti tale missione"]
[]
["OBIETTIVO OPERATIVO ",null,null,null,"DESCRIZIONE SINTETICA ",null,null,null,"RISORSE FINANZIARIE SPECIFICHE E DOTAZIONI STRUMENTALI",null,"ORIZZONTE TEMPORALE E IMPEGNI PLURIENNALI"]
[]
[]
[]
["Missione 14 – Sviluppo economico e competitività e relativi programmi"]
[]
["Definizione"]
["L'azione dell’ente nelle più vaste tematiche economiche e produttive è spesso indirizzata a stimolare un più incisivo intervento di altre strutture pubbliche, come la regione, la provincia e la camera di commercio che, per competenza istituzionale, operano abitualmente in questo settore. Premesso questo, sono comprese in questa Missione l’amministrazione e il funzionamento delle attività per la promozione dello sviluppo e della competitività del sistema economico locale, inclusi i servizi e gli interventi per lo sviluppo sul territorio delle attività produttive, del commercio e dell'artigianato, dell'industria e dei servizi di pubblica utilità. Queste attribuzioni si estendono, in taluni casi, alla valorizzazione dei servizi per l'innovazione, la ricerca e lo sviluppo tecnologico del territorio."]
[]
["Programmi"]
["Programma 14.01. - Industria, PMI e Artigianato"]
["Programma 14.02. - Commercio - reti distributive - tutela dei consumatori"]
["Programma 14.03. - Ricerca e innovazione"]
["Programma 14.04. - Reti e altri servizi di pubblica utilità"]
[]
["Non sono previste a bilancio spese inerenti tale missione"]
[]
["OBIETTIVO OPERATIVO ",null,null,null,"DESCRIZIONE SINTETICA ",null,null,null,"RISORSE FINANZIARIE SPECIFICHE E DOTAZIONI STRUMENTALI",null,"ORIZZONTE TEMPORALE E IMPEGNI PLURIENNALI"]
[]
[]
[]
["Missione 15 – Politiche per il lavoro e la formazione professionale e relativi programmi"]
[]
["Definizione"]
["I principali interventi nell’ambito del lavoro rientrano nelle competenze prioritarie di strutture che fanno rifermento allo stato, alla regione ed alla provincia. L’operatività dell’ente in questo contesto così particolare è quindi sussidiaria rispetto le prestazioni svolte da altri organismi della pubblica amministrazione. Partendo da questa premessa, l'ente locale può operare sia con interventi di supporto alle politiche attive di sostegno e promozione dell'occupazione, che mediante azioni volte al successivo inserimento del prestatore d'opera nel mercato del lavoro. Rientrano in questo ambito anche gli interventi a tutela dal rischio di disoccupazione, fino alla promozione, sostegno e programmazione della rete dei servizi per il lavoro, per la formazione e l'orientamento professionale."]
[]
["Programmi"]
["Programma 15.01. - Servizi per lo sviluppo del mercato del lavoro "]
["Programma 15.02. - Formazione professionale"]
["Programma 15.03. - Sostegno all’occupazione"]
[]
["Non sono previste a bilancio spese inerenti tale missione"]
[]
["OBIETTIVO OPERATIVO ",null,null,null,"DESCRIZIONE SINTETICA ",null,null,null,"RISORSE FINANZIARIE SPECIFICHE E DOTAZIONI STRUMENTALI",null,"ORIZZONTE TEMPORALE E IMPEGNI PLURIENNALI"]
[]
[]
[]
["Missione 16 – Agricoltura, politiche agroalimentari, pesca e relativi programmi"]
[]
["Definizione"]
["Rientrano in questa Missione, con i relativi programmi, secondo il glossario ARCONET, l’amministrazione, funzionamento e l’erogazione di servizi inerenti allo sviluppo sul territorio delle aree rurali, dei settori agricolo e agro-industriale, alimentare, forestale, zootecnico, della caccia, della pesca e dell'acquacoltura. Queste competenze, per altro secondarie rispetto l’attività  prioritaria dell’ente locale,  possono abbracciare sia  la programmazione, coordinamento e monitoraggio delle politiche sul territorio, in accordo con la programmazione comunitaria e statale, che gli interventi nell'ambito della politica regionale in materia di agricoltura, sistemi agroalimentari, caccia e pesca. In questo caso, come in tutti i contesti d'intervento diretto sull’economia, le risorse utilizzabili in loco sono particolarmente contenute."]
[]
["Programmi"]
["Programma 16.01. - Sviluppo del settore agricolo e del sistema agroalimentare"]
["Programma 16.01. - Caccia e pesca"]
[]
["Non sono previste a bilancio spese inerenti tale missione"]
[]
["OBIETTIVO OPERATIVO ",null,null,null,"DESCRIZIONE SINTETICA ",null,null,null,"RISORSE FINANZIARIE SPECIFICHE E DOTAZIONI STRUMENTALI",null,"ORIZZONTE TEMPORALE E IMPEGNI PLURIENNALI"]
[]
[]
[]
["Missione 17 – Energia e diversificazione delle fonti energetiche e relativi programmi"]
[]
["Definizione"]
["L'organizzazione di mezzi strumentali ed umani richiesti per l'esercizio di attività produttive o distributive, come la produzione o l’erogazione del gas metano, dell'elettricità e del teleriscaldamento, hanno bisogno di un bagaglio di conoscenze economiche ed aziendali molto specifiche. Si tratta di attività produttive che sono spesso gestite da società a capitale pubblico più che da servizi gestiti in economia. Partendo da questa premessa, possono essere attribuite all’ente le attività di programmazione del sistema energetico e di possibile razionalizzazione delle reti energetiche nel territorio, nell’ambito del quadro normativo e istituzionale statale. Queste competenze possono estendersi fino alle attività per incentivare l’uso razionale dell’energia e l’utilizzo delle fonti rinnovabili."]
["La definizione da glossario prevede che la missione contenga spese e programmi relativi a programmazione del sistema energetico e razionalizzazione delle reti energetiche nel territorio, nell’ambito del quadro normativo e istituzionale comunitario e statale. Attività per incentivare l’uso razionale dell’energia e l’utilizzo delle fonti rinnovabili. Programmazione e coordinamento per la razionalizzazione e lo sviluppo delle infrastrutture e delle reti energetiche sul territorio. Interventi che rientrano nell'ambito della politica regionale unitaria in materia di energia e diversificazione delle fonti energetiche."]
[]
["Programmi"]
["Programma 17.02. - Politica regionale unitaria per l`energia e la diversificazione delle fonti energetiche"]
[]
["Non sono previste a bilancio spese inerenti tale missione"]
[]
["OBIETTIVO OPERATIVO ",null,null,null,"DESCRIZIONE SINTETICA ",null,null,null,"RISORSE FINANZIARIE SPECIFICHE E DOTAZIONI STRUMENTALI",null,"ORIZZONTE TEMPORALE E IMPEGNI PLURIENNALI"]
[]
[]
[]
["Missione 18 – Relazioni con le altre autonomie territoriali e relativi programmi"]
[]
["Definizione"]
["Questa missione, insieme all'analoga dedicata ai rapporti sviluppati con l’estero, delimita un ambito operativo teso a promuovere lo sviluppo di relazioni intersettoriali con enti, strutture e organizzazioni che presentano gradi di affinità o di sussidiarietà, e questo sia per quanto riguarda le finalità istituzionali che per le modalità di intervento operativo sul territorio. Da glossario ARCONET rientrano in questo contesto le erogazioni verso altre amministrazioni per finanziamenti non riconducibili a  specifiche missioni, i trasferimenti perequativi e per interventi in attuazione del federalismo fiscale. Comprende le concessioni di crediti a favore di altre amministrazioni territoriali, oltre agli interventi della politica regionale unitaria per le relazioni con le autonomie, o comunque legate alla collettività."]
[]
["Programmi"]
["Programma 18.01. - Relazioni finanziarie con le altre autonomie territoriali"]
[]
["Non sono previste a bilancio spese inerenti tale missione"]
[]
["OBIETTIVO OPERATIVO ",null,null,null,"DESCRIZIONE SINTETICA ",null,null,null,"RISORSE FINANZIARIE SPECIFICHE E DOTAZIONI STRUMENTALI",null,"ORIZZONTE TEMPORALE E IMPEGNI PLURIENNALI"]
[]
[]
[]
["Missione 19 - Relazioni internazionali e relativi programmi"]
[]
["Definizione"]
["Il contesto in cui opera la missione è molto particolare ed è connesso a situazioni specifiche dove, per effetto di affinità culturali, storiche o sociali, oppure in seguito alla presenza di sinergie economiche o contiguità territoriali, l’ente locale si trova ad operare al di fuori del contesto nazionale. Sono caratteristiche presenti in un numero limitato di enti. In questo caso, gli interventi possono abbracciare l’amministrazione e il funzionamento delle attività per i rapporti e la partecipazione ad associazioni internazionali di regioni ed enti locali, per i programmi di promozione internazionale e per l'attività di cooperazione internazionale allo sviluppo."]
["Rientrano nel contesto anche gli specifici interventi della politica regionale di cooperazione territoriale a carattere transfrontaliero."]
[]
["Programmi"]
["Programma 18.01. - Relazioni internazionali e Cooperazione allo sviluppo"]
[]
["Non sono previste a bilancio spese inerenti tale missione"]
[]
["OBIETTIVO OPERATIVO ",null,null,null,"DESCRIZIONE SINTETICA ",null,null,null,"RISORSE FINANZIARIE SPECIFICHE E DOTAZIONI STRUMENTALI",null,"ORIZZONTE TEMPORALE E IMPEGNI PLURIENNALI"]
[]
[]
[]
["Missione 20 – Fondi ed accantonamenti - e relativi programmi"]
[]
["Definizione"]
["Come da glossario ARCONET, questa missione, dal contenuto prettamente contabile, è destinata ad evidenziare gli importi degli stanziamenti di spesa per accantonamenti al fondo di riserva per spese impreviste ed al fondo svalutazione crediti di dubbia esigibilità ed ai fondi speciali dovuti per legge che si perfezionano successivamente all’approvazione del bilancio. Per quanto riguarda questa ultima posta, in presenza di crediti di dubbia esigibilità l'ente effettua un accantonamento al fondo svalutazione crediti vincolando a tal fine una quota dell’avanzo di amministrazione. Il valore complessivo del fondo dipende dalla dimensione degli stanziamenti relativi ai crediti che presumibilmente si formeranno nell’esercizio entrante, della loro natura e dell’andamento del fenomeno negli ultimi cinque esercizi precedenti (media del rapporto tra incassi e accertamenti per ciascuna tipologia di entrata)."]
[]
["Programmi"]
["Programma 20.01. - Fondo di riserva"]
["Programma 20.02. - Fondo svalutazione crediti"]
["Programma 20.03. - Altri fondi"]
[]
["OBIETTIVO OPERATIVO ",null,null,null,"DESCRIZIONE SINTETICA ",null,null,null,"RISORSE FINANZIARIE SPECIFICHE E DOTAZIONI STRUMENTALI",null,"ORIZZONTE TEMPORALE E IMPEGNI PLURIENNALI"]
["Definizione di un fondo di riserva corretto a livello di normativa contabile e congruo rispetto alle evenienze straordinarie del successivo quadrimestre","Definizione di un fondo di riserva corretto a livello di normativa contabile e congruo rispetto alle evenienze straordinarie del successivo quadrimestre","Definizione di un fondo di riserva corretto a livello di normativa contabile e congruo rispetto alle evenienze straordinarie del successivo quadrimestre","Definizione di un fondo di riserva corretto a livello di normativa contabile e congruo rispetto alle evenienze straordinarie del successivo quadrimestre","Accantonamento fondo di riserva nei limiti indicati dalla norma",{"$nulls":5},"2018/2020"]
["Determinazione del F.C.D..E. congruo e corretto sotto il profilo contabile secondo le indicazioni ARCONET rispetto alla media quinquennale delle difficili esazioni e valutazioni autonome sulle poste precedentemente gestite per cassa.","Determinazione del F.C.D.D.E. congruo e corretto sotto il profilo contabile secondo le indicazioni ARCONET rispetto alla media quinquennale delle difficili esazioni e valutazioni autonome sulle poste precedentemente gestite per cassa.","Determinazione del F.C.D.D.E. congruo e corretto sotto il profilo contabile secondo le indicazioni ARCONET rispetto alla media quinquennale delle difficili esazioni e valutazioni autonome sulle poste precedentemente gestite per cassa.","Determinazione del F.C.D.D.E. congruo e corretto sotto il profilo contabile secondo le indicazioni ARCONET rispetto alla media quinquennale delle difficili esazioni e valutazioni autonome sulle poste precedentemente gestite per cassa.","Accantonamento fondo crediti dubbia esigibilità come indicato dalla vigente normativa",{"$nulls":5},"2018/2020"]
[]
[]
["Missione 50 – Debito pubblico e relativi programmi"]
[]
["Definizione"]
["La missione, di stretta natura finanziaria, è destinata a contenere gli stanziamenti di spesa destinati al futuro pagamento delle quote capitale sui mutui e sui prestiti assunti dall'ente con relative spese accessorie, oltre alle anticipazioni straordinarie. Rientrano in questo ambito le spese da sostenere per il pagamento degli interessi e capitale relativi alle risorse finanziarie acquisite con emissione di titoli obbligazionari, prestiti a breve termine, mutui e finanziamenti a medio e lungo termine e altre forme di indebitamento e relative spese accessorie di stretta competenza dell'ente. I principi contabili adottati dall’ente relativi alla contabilità finanziaria prevedono di contabilizzare gli oneri del debito pubblico in modo frazionato all’interno delle singole missioni di appartenenza Il piano dei pagamenti previsto a bilancio ipotizza ovviamente le quote di capitale annuali rispetto ai vigenti piani di ammortamento. Si evidenzia come già accennato nella SeS la necessità di valutare attentamente le opportunità di mercato in presenza di tassi di indebitamento molto bassi a medio periodo nel tentativo di impostare una ristrutturazione del debito residuo, in collaborazione con l’Advisor comunale."]
[]
["Programmi"]
["Programma 50.01. - Quota interessi ammortamento mutui e prestiti obbligazionari"]
["Programma 50.02. - Quota capitale ammortamento mutui e prestiti obbligazionari"]
[]
["OBIETTIVO OPERATIVO ",null,null,null,"DESCRIZIONE SINTETICA ",null,null,null,"RISORSE FINANZIARIE SPECIFICHE E DOTAZIONI STRUMENTALI",null,"ORIZZONTE TEMPORALE E IMPEGNI PLURIENNALI"]
["Prosecuzione delle attività gestionali riferite all’ordinaria evoluzione dell’indebitamento comunale","Prosecuzione delle attività gestionali riferite all’ordinaria evoluzione dell’indebitamento comunale","Prosecuzione delle attività gestionali riferite all’ordinaria evoluzione dell’indebitamento comunale","Prosecuzione delle attività gestionali riferite all’ordinaria evoluzione dell’indebitamento comunale","Pagamento ratei indicati nei piani di ammortamento mutui in essere",{"$nulls":5},"2018/2020"]
["PROGRAMMA BIENNALE DEGLI ACQUISTI DI BENI E SERVIZI"]
[]
["Si dà atto che, nel biennio 2018-2019 non sono programmati acquisti di beni e/o fornitura di servizi di importo unitario pari o superiore ad €.40.000,00"]
["PIANO TRIENNALE DI RAZIONALIZZAZIONE DELLE SPESE DI FUNZIONAMENTO"]
["Linee di indirizzo cui i Responsabili di Settore e gli utilizzatori dovranno attenersi per l’utilizzo dei seguenti beni strumentali e/o risorse:\n\na)      apparecchiature di telefonia mobile: \n-        l’assegnazione del telefono cellulare di servizio deve essere finalizzata ad accrescere l’efficienza e l’efficacia dell’attività amministrativa; \n-        l’uso dei telefoni cellulari di servizio deve sempre seguire un criterio di utilizzazione predeterminato, finalizzato ad esigenze di servizio fuori sede, di reperibilità, o in situazioni di emergenza per eventi calamitosi, e limitato alla durata di tale servizio; \n-        non é, pertanto, consentita l’assegnazione di telefoni cellulari a favore di soggetti le cui competenze ed attribuzioni, così come il luogo e le modalità del loro espletamento, escludano una benché minima esigenza del relativo impiego; \n-        la violazione del principio di buon andamento della Pubblica Amministrazione é evidente laddove il telefono cellulare sia assegnato a personale adibito all’espletamento di mansioni amministrative all’interno degli uffici; \n-        anche nelle situazioni ammesse, l’uso del telefono cellulare di servizio, essendo limitato alle specifiche esigenze lavorative, deve consentire una consegna in uso temporaneo e non una assegnazione del telefonino e della connessa utenza; \n-        le spese per l’acquisto/locazione, uso e manutenzione delle apparecchiature devono essere contenute nell’ambito delle somme disponibili per le spese telefoniche e quindi occorre valutare, in un contesto unitario, i miglioramenti delle prestazioni dell’Amministrazione e la razionalizzazione della spesa nell’intero sistema telefonico, a titolo esemplificativo riducendo le utenze fisse; \n-        in ogni caso, deve essere predisposto un rigoroso monitoraggio dei consumi, per verificare l’economicità dell’iniziativa, ed un controllo sulla documentazione delle chiamate effettuate;\n\nb)      parco automezzi: \n-        gli automezzi di servizio in dotazione al Comune sono utilizzati esclusivamente per l’espletamento delle funzioni proprie dell’Amministrazione; \n \n- La fornitura del carburante, per gli automezzi comunali, è soggetta alla vigilanza degli uffici competenti a gestire gli automezzi e avviene attraverso l’acquisto di tessere magnetiche.\n \n-        prima di acquisire un nuovo automezzo, qualora consentito dalla normativa, dovrà essere effettuata una valutazione comparativa, in relazione alla tipologia di automezzo e all’uso cui esso sarà destinato, sull’opportunità di procedere all’acquisto oppure al noleggio a lungo termine “tutto compreso”; \n \nc) risparmio energetico: \n-        deve essere assicurata l’individuazione di misure finalizzate al risparmio energetico; \n \nd) utilizzo dotazioni informatiche: \n-        si stabiliscono le seguenti direttive :: \n1. utilizzare la rete internet ed intranet per scopi prettamente attinenti con l’attività istituzionale del Comune; \n2. non installare programmi sul personal computer in dotazione senza la preventiva autorizzazione dell’amministratore di sistema; \n3. non modificare la configurazione del personal computer in dotazione; \n4. non utilizzare le risorse hardware e software e i servizi disponibili per scopi personali;\n5. salvare files scaturenti dall’attività lavorativa su cartelle di rete, in modo da automatizzare il salvataggio dei dati.\n \n-        in fase di aggiornamento e/o implementazione dei sistemi informativi dell’ente, deve essere attentamente valutata la possibilità di integrare ulteriormente l’acquisizione di soluzioni Open Source; \n-        occorre favorire l’utilizzo di strumenti di rete (stampanti, scanner, ecc.) ad alta efficienza e produttività;\n \ne) beni immobili:\n\n-        deve essere razionalizzato l’impiego degli spazi al fine di ottenere risparmi nelle utenze, servizi di pulizia ecc.\n-       devono essere adottate azioni  tese alla valorizzazione degli immobili con cambi di funzione e recupero di spazi.\n"]
[]
[]
["OPERE PUBBLICHE E INVESTIMENTI PROGRAMMATI"]
["Il piano triennale delle opere pubbliche viene adeguato alle risultanze del bilancio di previsione approvato."]
[]
["ALIENAZIONE E VALORIZZAZIONE DEL PATRIMONIO"]
["Il piano delle alienazioni e della valorizzazione del patrimonio comunale viene adeguato alle risultanze del bilancio di previsione approvato."]